Workbook

Sheet Target
A1: Mix ID:
A2: Total Cementitious Material (IN LBS) | D2: Update 1/1/24 CDB | BY2: TRUE | FA2: 36 | FB2: 45
A3: PROJECT NO: | BY3: TRUE | FA3: 100 | FB3: 36
A4: CONTRACTOR | BY4: FALSE | FA4: 45 | FB4: 38.6
A5: Combined Target Gradation | D5: Limits | BY5: FALSE | FA5: 72 | FB5: 34.805
A6: Sieve | B6: Target | C6: Tolerance | D6: (+) | E6: (-) | BY6: FALSE | FA6: 45 | FB6: 37.1
A7: 1 1/2" | B7: 100 | C7: 5 | D7: n/a | E7: n/a | BY7: FALSE | FA7: 72 | FB7: 33.305
A8: 1" | C8: 5 | D8: =IF(B8="","",IF(B8+C8>100,100,B8+C8)) ->  | E8: =IF((B8-C8)>0,(B8-C8),0) -> 0 | BY8: FALSE | FA8: 45 | FB8: 34.9
A9: 3/4" | C9: 5 | D9: =IF(B9="","",IF(B9+C9>100,100,B9+C9)) ->  | E9: 0 | BY9: FALSE | FA9: 72 | FB9: 31.105
A10: 1/2" | C10: 5 | D10: =IF(B10="","",IF(B10+C10>100,"100",B10+C10)) ->  | E10: 0 | BY10: FALSE | FA10: 45 | FB10: 33.6
A11: 3/8" | C11: 5 | E11: 0 | BY11: FALSE | FA11: 72 | FB11: 29.805
A12: #4 | C12: 5 | E12: 0 | BY12: FALSE | FA12: 0 | FB12: 37.1 | FC12: =FB12-2 -> 35.1
A13: #8 | C13: 4 | E13: 0 | BY13: FALSE | FA13: 10 | FB13: 37.1 | FC13: 35.1
A14: #16 | C14: 4 | E14: 0 | BY14: FALSE | FA14: 20 | FB14: 36.5 | FC14: 34.5
A15: #30 | C15: 4 | E15: 0 | BY15: FALSE | FA15: 30 | FB15: 34.95 | FC15: 32.95
A16: #50 | C16: 3 | E16: 0 | BY16: FALSE | FA16: 75 | FB16: 28.65 | FC16: 26.65
A17: #100 | C17: 2 | E17: 0 | BY17: FALSE | FA17: 81.35 | FB17: 27.43 | FC17: 25.43
A18: #200 | B18: 2 | C18: Max | D18: =B18 -> 2 | E18: 0 | BY18: FALSE | FA18: 90 | FB18: 27 | FC18: 25
BY19: FALSE | FA19: 100 | FB19: 27 | FC19: 25
A20: 1" | B20: =$D$8 ->  | EW20: =$D$8 ->  | FA20: 45 | FB20: 40.31
B21: =$E$8 -> 0 | EW21: =$E$8 -> 0 | FA21: 72 | FB21: 36.515
A22: 3/4" | B22: =$D$9 ->  | EW22: =$D$9 ->  | FA22: 45 | FB22: 42.02
B23: =$E$9 -> 0 | EW23: =$E$9 -> 0 | FA23: 72 | FB23: 38.225
A24: 1/2" | B24: =$D$10 ->  | EW24: =$D$10 ->  | FA24: 72 | FB24: 29.8
B25: =$E$10 -> 0 | EW25: =$E$10 -> 0 | FA25: 72 | FB25: 39.93
A26: 3/8" | B26: =$D$11 ->  | EW26: =$D$11 ->  | FA26: 75 | FB26: 28.15
B27: =$E$11 -> 0 | EW27: =$E$11 -> 0 | FA27: 75 | FB27: 39.51
A28: #4 | B28: =$D$12 ->  | EW28: =$D$12 ->  | FA28: 45 | FB28: =FA28*-0.140625+50.06 -> 43.731875
B29: =$E$12 -> 0 | EW29: =$E$12 -> 0 | FA29: 45 | FB29: 32.5
A30: #8 | B30: =$D$13 ->  | EW30: =$D$13 ->  | FA30: 30 | FB30: 34.5
B31: =$E$13 -> 0 | EW31: =$E$13 -> 0 | FA31: 80 | FB31: 27.5
A32: #16 | B32: =$D$14 ->  | EW32: =$D$14 -> 
B33: =$E$14 -> 0 | EW33: =$E$14 -> 0
A34: #30 | B34: =$D$15 ->  | EW34: =$D$15 -> 
B35: =$E$15 -> 0 | EW35: =$E$15 -> 0
A36: #50 | B36: =$D$16 ->  | EW36: =$D$16 -> 
B37: =$E$16 -> 0 | EW37: =$E$16 -> 0
A38: #100 | B38: =$D$17 ->  | EW38: =$D$17 -> 
B39: =$E$17 -> 0 | EW39: =$E$17 -> 0
A40: #200 | B40: =$D$18 -> 2 | EW40: =$D$18 -> 2

Sheet Gradation
A1: Combined Gradations | R1: English or Metric (E or M) | S1: E | T1: =IF(S1="E",1500,IF(S1="M",1250)) -> 1500 | U1: =IF(S1="E","yd3",IF(T1="M","m3")) -> yd3 | V1: Lot Averages
A3: Date | B3: Lot # | C3: Test # | D3: 1 1/2" | E3: 1" | F3: 3/4" | G3: 1/2" | H3: 3/8" | I3: #4 | J3: #8 | K3: #16 | L3: #30 | M3: #50 | N3: #100 | O3: #200 | P3: CF | Q3: WF | S3: Lot # | T3: Lot # | U3: Lot # | V3: Lot # | W3: Lot # | X3: Lot # | Y3: Lot # | Z3: Lot # | AA3: Lot # | AB3: Lot # | AC3: Lot # | AD3: Lot # | AE3: Lot # | AF3: Lot # | AG3: Lot #
P4: =IF(A4="",0,(((100-D4)+(D4-E4)+(E4-F4)+(F4-G4)+(G4-H4))/(((100-D4)+(D4-E4)+(E4-F4)+(F4-G4)+(G4-H4)+(H4-I4)+(I4-J4))))*100) -> 0 | Q4: =IF(A4="",0,J4) -> 0 | S4: ="=1" -> =1 | T4: ="=2" -> =2 | U4: ="=3" -> =3 | V4: ="=4" -> =4 | W4: ="=5" -> =5 | X4: ="=6" -> =6 | Y4: ="=7" -> =7 | Z4: ="=8" -> =8 | AA4: ="=9" -> =9 | AB4: ="=10" -> =10 | AC4: ="=11" -> =11 | AD4: ="=12" -> =12 | AE4: ="=13" -> =13 | AF4: ="=14" -> =14 | AG4: ="=15" -> =15
P5: =IF(A5="",0,(((100-D5)+(D5-E5)+(E5-F5)+(F5-G5)+(G5-H5))/(((100-D5)+(D5-E5)+(E5-F5)+(F5-G5)+(G5-H5)+(H5-I5)+(I5-J5))))*100) -> 0 | Q5: =IF(A5="",0,J5) -> 0 | R5: CF | S5: =DAVERAGE($A$3:$Q$150,16,S$3:S$4) ->  | T5: =DAVERAGE($A$3:$Q$150,16,T$3:T$4) ->  | U5: =DAVERAGE($A$3:$Q$150,16,U$3:U$4) ->  | V5: =DAVERAGE($A$3:$Q$150,16,V$3:V$4) ->  | W5: =DAVERAGE($A$3:$Q$150,16,W$3:W$4) ->  | X5: =DAVERAGE($A$3:$Q$150,16,X$3:X$4) -> 
P6: 0 | Q6: 0 | R6: WF | S6: =DAVERAGE($A$3:$Q$150,17,S$3:S$4) ->  | T6: =DAVERAGE($A$3:$Q$150,17,T$3:T$4) ->  | U6: =DAVERAGE($A$3:$Q$150,17,U$3:U$4) ->  | V6: =DAVERAGE($A$3:$Q$150,17,V$3:V$4) ->  | W6: =DAVERAGE($A$3:$Q$150,17,W$3:W$4) -> 
P7: 0 | Q7: 0 | R7: Zone | S7: =IF(AND(S5<100,S5>0,S6>-0.140625*S5+50.06),"IV",IF(AND(S5<75,S5>=45,S6>-0.140625*S5+39.2,S6<-0.140625*S5+50.06),"II",IF(AND(S5<45,S6>-0.140625*S5+39.2,S6<-0.140625*S5+50.06),"III",IF(AND(S5>75,S6>-0.140625*S5+39.2,S6<-0.140625*S5+50.06),"I",IF(AND(S5<72,S5>45,S6<-0.140625*S5+39.2),"V","O"))))) ->  | T7: =IF(AND(T5<100,T5>0,T6>-0.140625*T5+50.06),"IV",IF(AND(T5<75,T5>=45,T6>-0.140625*T5+39.2,T6<-0.140625*T5+50.06),"II",IF(AND(T5<45,T6>-0.140625*T5+39.2,T6<-0.140625*T5+50.06),"III",IF(AND(T5>75,T6>-0.140625*T5+39.2,T6<-0.140625*T5+50.06),"I",IF(AND(T5<72,T5>45,T6<-0.140625*T5+39.2),"V","O"))))) -> 
P8: 0 | Q8: 0 | R8: # Gradations | S8: =DCOUNT($A$3:$Q$150,2,S$3:S$4) -> 0 | T8: =DCOUNT($A$3:$Q$150,2,T$3:T$4) -> 0 | U8: 0 | V8: 0 | W8: 0 | X8: 0 | Y8: 0 | Z8: 0 | AA8: 0 | AB8: 0 | AC8: 0 | AD8: 0 | AE8: 0 | AF8: 0 | AG8: 0
P9: 0 | Q9: 0 | R9: # Required | S9: =IF('Project Summary'!$C10="","",'Project Summary'!$C10/$T$1) ->  | T9: =IF('Project Summary'!$C11="","",'Project Summary'!$C11/$T$1) ->  | U9: =IF('Project Summary'!$C12="","",'Project Summary'!$C12/$T$1) ->  | V9: =IF('Project Summary'!$C13="","",'Project Summary'!$C13/$T$1) ->  | W9: =IF('Project Summary'!$C14="","",'Project Summary'!$C14/$T$1) ->  | X9: =IF('Project Summary'!$C15="","",'Project Summary'!$C15/$T$1) ->  | Y9: =IF('Project Summary'!$C16="","",'Project Summary'!$C16/$T$1) ->  | Z9: =IF('Project Summary'!$C17="","",'Project Summary'!$C17/$T$1) ->  | AA9: =IF('Project Summary'!$C18="","",'Project Summary'!$C18/$T$1) ->  | AB9: =IF('Project Summary'!$C19="","",'Project Summary'!$C19/$T$1) ->  | AC9: =IF('Project Summary'!$C20="","",'Project Summary'!$C20/$T$1) ->  | AD9: =IF('Project Summary'!$C21="","",'Project Summary'!$C21/$T$1) ->  | AE9: =IF('Project Summary'!$C22="","",'Project Summary'!$C22/$T$1) ->  | AF9: =IF('Project Summary'!$C23="","",'Project Summary'!$C23/$T$1) ->  | AG9: =IF('Project Summary'!$C24="","",'Project Summary'!$C24/$T$1) -> 
P10: 0 | Q10: 0
P11: 0 | Q11: 0
P12: 0 | Q12: 0
P13: 0 | Q13: 0
P14: 0 | Q14: 0
P15: 0 | Q15: 0
P16: 0 | Q16: 0
P17: 0 | Q17: 0
P18: 0 | Q18: 0
P19: 0 | Q19: 0
P20: 0 | Q20: 0
P21: 0 | Q21: 0
P22: 0 | Q22: 0
P23: 0 | Q23: 0
P24: 0 | Q24: 0
P25: 0 | Q25: 0
P26: 0 | Q26: 0
P27: 0 | Q27: 0
P28: 0 | Q28: 0
P29: 0 | Q29: 0
P30: 0 | Q30: 0
P31: 0 | Q31: 0
P32: 0 | Q32: 0
P33: 0 | Q33: 0
P34: 0 | Q34: 0
P35: 0 | Q35: 0
P36: 0 | Q36: 0
P37: 0 | Q37: 0
P38: 0 | Q38: 0
P39: 0 | Q39: 0
P40: 0 | Q40: 0
P41: 0 | Q41: 0
P42: 0 | Q42: 0
P43: 0 | Q43: 0
P44: 0 | Q44: 0
P45: 0 | Q45: 0
P46: 0 | Q46: 0
P47: 0 | Q47: 0
P48: 0 | Q48: 0
P49: 0 | Q49: 0
P50: 0 | Q50: 0
P51: 0 | Q51: 0
P52: 0 | Q52: 0
P53: 0 | Q53: 0
P54: 0 | Q54: 0
P55: 0 | Q55: 0
P56: 0 | Q56: 0
P57: 0 | Q57: 0
P58: 0 | Q58: 0
P59: 0 | Q59: 0
P60: 0 | Q60: 0
P61: 0 | Q61: 0
P62: 0 | Q62: 0
P63: 0 | Q63: 0
P64: 0 | Q64: 0
P65: 0 | Q65: 0
P66: 0 | Q66: 0
P67: 0 | Q67: 0
P68: 0 | Q68: 0
P69: =IF(A69="",0,(((100-D69)+(D69-E69)+(E69-F69)+(F69-G69)+(G69-H69))/(((100-D69)+(D69-E69)+(E69-F69)+(F69-G69)+(G69-H69)+(H69-I69)+(I69-J69))))*100) -> 0 | Q69: =IF(A69="",0,J69) -> 0
P70: 0 | Q70: 0
P71: 0 | Q71: 0
P72: 0 | Q72: 0
P73: 0 | Q73: 0
P74: 0 | Q74: 0
P75: 0 | Q75: 0
P76: 0 | Q76: 0
P77: 0 | Q77: 0
P78: 0 | Q78: 0
P79: 0 | Q79: 0
P80: 0 | Q80: 0
P81: 0 | Q81: 0
P82: 0 | Q82: 0
P83: 0 | Q83: 0
P84: 0 | Q84: 0
P85: 0 | Q85: 0
P86: 0 | Q86: 0
P87: 0 | Q87: 0
P88: 0 | Q88: 0
P89: 0 | Q89: 0
P90: 0 | Q90: 0
P91: 0 | Q91: 0
P92: 0 | Q92: 0
P93: 0 | Q93: 0
P94: 0 | Q94: 0
P95: 0 | Q95: 0
P96: 0 | Q96: 0
P97: 0 | Q97: 0
P98: 0 | Q98: 0
P99: 0 | Q99: 0
P100: 0 | Q100: 0
P101: 0 | Q101: 0
P102: 0 | Q102: 0
P103: 0 | Q103: 0
P104: 0 | Q104: 0
P105: 0 | Q105: 0
P106: 0 | Q106: 0
P107: 0 | Q107: 0
P108: 0 | Q108: 0
P109: 0 | Q109: 0
P110: 0 | Q110: 0
P111: 0 | Q111: 0
P112: 0 | Q112: 0
P113: 0 | Q113: 0
P114: 0 | Q114: 0
P115: 0 | Q115: 0
P116: 0 | Q116: 0
P117: 0 | Q117: 0
P118: 0 | Q118: 0
P119: 0 | Q119: 0
P120: 0 | Q120: 0
P121: 0 | Q121: 0
P122: 0 | Q122: 0
P123: 0 | Q123: 0
P124: 0 | Q124: 0
P125: 0 | Q125: 0
P126: 0 | Q126: 0
P127: 0 | Q127: 0
P128: 0 | Q128: 0
P129: 0 | Q129: 0
P130: 0 | Q130: 0
P131: 0 | Q131: 0
P132: 0 | Q132: 0
P133: =IF(A133="",0,(((100-D133)+(D133-E133)+(E133-F133)+(F133-G133)+(G133-H133))/(((100-D133)+(D133-E133)+(E133-F133)+(F133-G133)+(G133-H133)+(H133-I133)+(I133-J133))))*100) -> 0 | Q133: =IF(A133="",0,J133) -> 0
P134: 0 | Q134: 0
P135: 0 | Q135: 0
P136: 0 | Q136: 0
P137: 0 | Q137: 0
P138: 0 | Q138: 0
P139: 0 | Q139: 0
P140: 0 | Q140: 0
P141: 0 | Q141: 0
P142: 0 | Q142: 0
P143: 0 | Q143: 0
P144: 0 | Q144: 0
P145: 0 | Q145: 0
P146: 0 | Q146: 0
P147: 0 | Q147: 0
P148: 0 | Q148: 0
P149: 0 | Q149: 0
P150: 0 | Q150: 0

Sheet Project Summary
B1: PROJECT SUMMARY - LOT AVERAGE
B3: PROJECT NO: | D3: =Target!B3 -> 0
B4: CONTRACTOR : | D4: =Target!B4 -> 0
B7: Week Placed | D7: Lot Average
A8: Lot | B8: Beginning | C8: Quantity | D8: CF | E8: WF | F8: Pay Zone | G8: Pay Factor
A10: =Gradation!S$4 -> =1 | B10: =IF(Quantity!$A5="","",Quantity!$A5) ->  | C10: =IF(Quantity!E12>0,Quantity!E12,"") ->  | D10: =Gradation!S$5 ->  | E10: =Gradation!S$6 ->  | F10: =Gradation!S$7 ->  | G10: =IF(F10=0,"",IF(F10="II",100,IF(F10="IV",98,IF(F10="I",95,0)))) -> 
A11: =Gradation!T$4 -> =2 | B11: =IF(Quantity!$A13="","",Quantity!$A13) ->  | C11: =IF(Quantity!E20>0,Quantity!E20,"") ->  | D11: =Gradation!T$5 ->  | E11: =Gradation!T$6 ->  | F11: =Gradation!T$7 ->  | G11: =IF(F11=0,"",IF(F11="II",100,IF(F11="IV",98,IF(F11="I",95,0)))) -> 
A12: =Gradation!U$4 -> =3 | B12: =IF(Quantity!$A21="","",Quantity!$A21) ->  | C12: =IF(Quantity!E28>0,Quantity!E28,"") ->  | D12: =Gradation!U$5 ->  | E12: =Gradation!U$6 ->  | F12: =Gradation!U$7 -> 
A13: =Gradation!V$4 -> =4 | B13: =IF(Quantity!$A29="","",Quantity!$A29) ->  | C13: =IF(Quantity!E36>0,Quantity!E36,"") ->  | D13: =Gradation!V$5 ->  | E13: =Gradation!V$6 ->  | F13: =Gradation!V$7 -> 
A14: =Gradation!W$4 -> =5 | B14: =IF(Quantity!$A37="","",Quantity!$A37) ->  | C14: =IF(Quantity!E44>0,Quantity!E44,"") ->  | D14: =Gradation!W$5 ->  | E14: =Gradation!W$6 ->  | F14: =Gradation!W$7 -> 
A15: =Gradation!X$4 -> =6 | B15: =IF(Quantity!$A45="","",Quantity!$A45) ->  | C15: =IF(Quantity!E52>0,Quantity!E52,"") ->  | D15: =Gradation!X$5 ->  | E15: =Gradation!X$6 ->  | F15: =Gradation!X$7 -> 
A16: =Gradation!Y$4 -> =7 | B16: =IF(Quantity!$A53="","",Quantity!$A53) ->  | C16: =IF(Quantity!E60>0,Quantity!E60,"") ->  | D16: =Gradation!Y$5 ->  | E16: =Gradation!Y$6 ->  | F16: =Gradation!Y$7 -> 
A17: =Gradation!Z$4 -> =8 | B17: =IF(Quantity!$A61="","",Quantity!$A61) ->  | C17: =IF(Quantity!E68>0,Quantity!E68,"") ->  | D17: =Gradation!Z$5 ->  | E17: =Gradation!Z$6 ->  | F17: =Gradation!Z$7 -> 
A18: =Gradation!AA$4 -> =9 | B18: =IF(Quantity!$A69="","",Quantity!$A69) ->  | C18: =IF(Quantity!E76>0,Quantity!E76,"") ->  | D18: =Gradation!AA$5 ->  | E18: =Gradation!AA$6 ->  | F18: =Gradation!AA$7 -> 
A19: =Gradation!AB$4 -> =10 | B19: =IF(Quantity!$A77="","",Quantity!$A77) ->  | C19: =IF(Quantity!E84>0,Quantity!E84,"") ->  | D19: =Gradation!AB$5 ->  | E19: =Gradation!AB$6 ->  | F19: =Gradation!AB$7 -> 
A20: =Gradation!AC$4 -> =11 | B20: =IF(Quantity!$A85="","",Quantity!$A85) ->  | C20: =IF(Quantity!E92>0,Quantity!E92,"") ->  | D20: =Gradation!AC$5 ->  | E20: =Gradation!AC$6 ->  | F20: =Gradation!AC$7 -> 
A21: =Gradation!AD$4 -> =12 | B21: =IF(Quantity!$A93="","",Quantity!$A93) ->  | C21: =IF(Quantity!E100>0,Quantity!E100,"") ->  | D21: =Gradation!AD$5 ->  | E21: =Gradation!AD$6 ->  | F21: =Gradation!AD$7 -> 
A22: =Gradation!AE$4 -> =13 | B22: =IF(Quantity!$A101="","",Quantity!$A101) ->  | C22: =IF(Quantity!E108>0,Quantity!E108,"") ->  | D22: =Gradation!AE$5 ->  | E22: =Gradation!AE$6 ->  | F22: =Gradation!AE$7 -> 
A23: =Gradation!AF$4 -> =14 | B23: =IF(Quantity!$A109="","",Quantity!$A109) ->  | C23: =IF(Quantity!E116>0,Quantity!E116,"") ->  | D23: =Gradation!AF$5 ->  | E23: =Gradation!AF$6 ->  | F23: =Gradation!AF$7 -> 
A24: =Gradation!AG$4 -> =15 | B24: =IF(Quantity!$A117="","",Quantity!$A117) ->  | C24: =IF(Quantity!E123>0,Quantity!E123,"") ->  | D24: =Gradation!AG$5 ->  | E24: =Gradation!AG$6 ->  | F24: =Gradation!AG$7 -> 
C26: =SUM(C10:C24) -> 0
B29: Air Tests Taken | C29: =COUNT(Air!A5:A401) -> 0
B30: Air Tests Required | C30: =Quantity!D125/350 -> 0
B32: Unit Weight Taken | C32: =COUNT(Air!D5:D401) -> 0
B33: Unit Weight Required | C33: =Quantity!D126*2 -> 0
B35: Max Recorded Air | C35: =MAX(Air!G5:G222) -> 0
B36: Min Recorded Air | C36: =MIN(Air!G5:G222) -> 0
B37: Avg Air | C37: =AVERAGE(Air!G5:G222) -> 
B38: Std Air | C38: =STDEV(Air!G5:G222) -> 
B39: Max Loss | C39: =MAX(Air!I5:I222) -> 0
B40: Min Loss | C40: =MIN(Air!I5:I306) -> 0
B41: Avg Loss | C41: =AVERAGE(Air!I5:I306) -> 
B42: Std Air | C42: =STDEV(Air!I5:I306) -> 

Sheet Quantity
C1: Volume of QM-C Concrete HANDWORK Placed | D1: Volume of QM-C Concrete Placed | E1: Volume of QM-C Concrete Placed for Lot | F1: Volume of QM-C Concrete Total Placed to Date
G2: 1
A3: Date | B3: Lot | C3: (yd^3/m^3) | D3: (yd^3/m^3) | E3: (yd^3/m^3) | F3: (yd^3/m^3) | G3: 2
C4: (Enter 0 if no more concrete produced for lot) | D4: (Enter 0 if no more concrete produced for lot) | G4: 3
B5: 1 | C5: 0 | D5: 0 | F5: =IF(D5="","",D5+C5) -> 0 | G5: 4
B6: 1 | C6: 0 | D6: 0 | F6: =IF(D6="","",F5+D6+C6) -> 0
B7: 1 | C7: 0 | D7: 0 | F7: =IF(D7="","",F6+D7+C7) -> 0 | G7: 5
B8: 1 | C8: 0 | D8: 0 | F8: =IF(D8="","",F7+D8+C8) -> 0 | G8: 6
B9: 1 | C9: 0 | D9: 0 | F9: 0 | G9: 7
B10: 1 | C10: 0 | D10: 0 | F10: 0 | G10: 8
B11: 1 | C11: 0 | D11: 0 | F11: 0 | G11: 9
B12: 1 | C12: 0 | D12: 0 | E12: =F12 -> 0 | F12: 0 | G12: 10
B13: 2 | C13: 0 | D13: 0 | F13: 0 | G13: 11
B14: 2 | C14: 0 | D14: 0 | F14: =IF(D14="","",F13+D14+C14) -> 0 | G14: 12
B15: 2 | C15: 0 | D15: 0 | F15: 0 | G15: 13
B16: 2 | C16: 0 | D16: 0 | F16: 0 | G16: 14
B17: 2 | C17: 0 | D17: 0 | F17: 0 | G17: 15
B18: 2 | C18: 0 | D18: 0 | F18: 0 | G18: 16
B19: 2 | C19: 0 | D19: 0 | F19: 0 | G19: 17
B20: 2 | C20: 0 | D20: 0 | E20: =IF(H20>0,F20-F12,0) -> 0 | F20: 0 | G20: 18 | H20: =F20-F12 -> 0
B21: 3 | C21: 0 | D21: 0 | F21: 0 | G21: 19
B22: 3 | C22: 0 | D22: 0 | F22: 0 | G22: 20
B23: 3 | C23: 0 | D23: 0 | F23: 0 | G23: 21
B24: 3 | C24: 0 | D24: 0 | F24: 0 | G24: 22
B25: 3 | C25: 0 | D25: 0 | F25: 0 | G25: 23
B26: 3 | C26: 0 | D26: 0 | F26: 0 | G26: 24
B27: 3 | C27: 0 | D27: 0 | F27: 0 | G27: 25
B28: 3 | C28: 0 | D28: 0 | E28: =IF(H28>0,F28-F20,0) -> 0 | F28: 0 | G28: 26 | H28: =F28-F20 -> 0
B29: 4 | C29: 0 | D29: 0 | F29: 0 | G29: 27
B30: 4 | C30: 0 | D30: 0 | F30: 0 | G30: 28
B31: 4 | C31: 0 | D31: 0 | F31: 0 | G31: 29
B32: 4 | C32: 0 | D32: 0 | F32: 0 | G32: 30
B33: 4 | C33: 0 | D33: 0 | F33: 0 | G33: 31
B34: 4 | C34: 0 | D34: 0 | F34: 0 | G34: 32
B35: 4 | C35: 0 | D35: 0 | F35: 0 | G35: 33
B36: 4 | C36: 0 | D36: 0 | E36: =IF(H36>0,F36-F28,0) -> 0 | F36: 0 | G36: 34 | H36: =F36-F28 -> 0
B37: 5 | C37: 0 | D37: 0 | F37: 0 | G37: 35
B38: 5 | C38: 0 | D38: 0 | F38: 0 | G38: 36
B39: 5 | C39: 0 | D39: 0 | F39: 0 | G39: 37
B40: 5 | C40: 0 | D40: 0 | F40: 0 | G40: 38
B41: 5 | C41: 0 | D41: 0 | F41: 0 | G41: 39
B42: 5 | C42: 0 | D42: 0 | F42: 0 | G42: 40
B43: 5 | C43: 0 | D43: 0 | F43: 0 | G43: 41
B44: 5 | C44: 0 | D44: 0 | E44: =IF(H44>0,F44-F36,0) -> 0 | F44: 0 | G44: 42 | H44: =F44-F36 -> 0
B45: 6 | C45: 0 | D45: 0 | F45: 0 | G45: 43
B46: 6 | C46: 0 | D46: 0 | F46: 0 | G46: 44
B47: 6 | C47: 0 | D47: 0 | F47: 0 | G47: 45
B48: 6 | C48: 0 | D48: 0 | F48: 0 | G48: 46
B49: 6 | C49: 0 | D49: 0 | F49: 0 | G49: 47
B50: 6 | C50: 0 | D50: 0 | F50: 0 | G50: 48
B51: 6 | C51: 0 | D51: 0 | F51: 0 | G51: 49
B52: 6 | C52: 0 | D52: 0 | E52: =IF(H52>0,F52-F44,0) -> 0 | F52: 0 | G52: 50 | H52: =F52-F44 -> 0
B53: 7 | C53: 0 | D53: 0 | F53: 0
B54: 7 | C54: 0 | D54: 0 | F54: 0
B55: 7 | C55: 0 | D55: 0 | F55: 0
B56: 7 | C56: 0 | D56: 0 | F56: 0
B57: 7 | C57: 0 | D57: 0 | F57: 0
B58: 7 | C58: 0 | D58: 0 | F58: 0
B59: 7 | C59: 0 | D59: 0 | F59: 0
B60: 7 | C60: 0 | D60: 0 | E60: =IF(H60>0,F60-F52,0) -> 0 | F60: 0 | H60: =F60-F52 -> 0
B61: 8 | C61: 0 | D61: 0 | F61: 0
B62: 8 | C62: 0 | D62: 0 | F62: 0
B63: 8 | C63: 0 | D63: 0 | F63: 0
B64: 8 | C64: 0 | D64: 0 | F64: 0
B65: 8 | C65: 0 | D65: 0 | F65: 0
B66: 8 | C66: 0 | D66: 0 | F66: 0
B67: 8 | C67: 0 | D67: 0 | F67: 0
B68: 8 | C68: 0 | D68: 0 | E68: =IF(H68>0,F68-F60,0) -> 0 | F68: 0 | H68: =F68-F60 -> 0
B69: 9 | C69: 0 | D69: 0 | F69: 0
B70: 9 | C70: 0 | D70: 0 | F70: 0
B71: 9 | C71: 0 | D71: 0 | F71: 0
B72: 9 | C72: 0 | D72: 0 | F72: 0
B73: 9 | C73: 0 | D73: 0 | F73: 0
B74: 9 | C74: 0 | D74: 0 | F74: 0
B75: 9 | C75: 0 | D75: 0 | F75: 0
B76: 9 | C76: 0 | D76: 0 | E76: =IF(H76>0,F76-F68,0) -> 0 | F76: 0 | H76: =F76-F68 -> 0
B77: 10 | C77: 0 | D77: 0 | F77: 0
B78: 10 | C78: 0 | D78: 0 | F78: =IF(D78="","",F77+D78+C78) -> 0
B79: 10 | C79: 0 | D79: 0 | F79: 0
B80: 10 | C80: 0 | D80: 0 | F80: 0
B81: 10 | C81: 0 | D81: 0 | F81: 0
B82: 10 | C82: 0 | D82: 0 | F82: 0
B83: 10 | C83: 0 | D83: 0 | F83: 0
B84: 10 | C84: 0 | D84: 0 | E84: =IF(H84>0,F84-F76,0) -> 0 | F84: 0 | H84: =F84-F76 -> 0
B85: 11 | C85: 0 | D85: 0 | F85: 0
B86: 11 | C86: 0 | D86: 0 | F86: 0
B87: 11 | C87: 0 | D87: 0 | F87: 0
B88: 11 | C88: 0 | D88: 0 | F88: 0
B89: 11 | C89: 0 | D89: 0 | F89: 0
B90: 11 | C90: 0 | D90: 0 | F90: 0
B91: 11 | C91: 0 | D91: 0 | F91: 0
B92: 11 | C92: 0 | D92: 0 | E92: =IF(H92>0,F92-F84,0) -> 0 | F92: 0 | H92: =F92-F84 -> 0
B93: 12 | C93: 0 | D93: 0 | F93: 0
B94: 12 | C94: 0 | D94: 0 | F94: 0
B95: 12 | C95: 0 | D95: 0 | F95: 0
B96: 12 | C96: 0 | D96: 0 | F96: 0
B97: 12 | C97: 0 | D97: 0 | F97: 0
B98: 12 | C98: 0 | D98: 0 | F98: 0
B99: 12 | C99: 0 | D99: 0 | F99: 0
B100: 12 | C100: 0 | D100: 0 | E100: =IF(H100>0,F100-F92,0) -> 0 | F100: 0 | H100: =F100-F92 -> 0
B101: 13 | C101: 0 | D101: 0 | F101: 0
B102: 13 | C102: 0 | D102: 0 | F102: 0
B103: 13 | C103: 0 | D103: 0 | F103: 0
B104: 13 | C104: 0 | D104: 0 | F104: 0
B105: 13 | C105: 0 | D105: 0 | F105: 0
B106: 13 | C106: 0 | D106: 0 | F106: 0
B107: 13 | C107: 0 | D107: 0 | F107: 0
B108: 13 | C108: 0 | D108: 0 | E108: =IF(H108>0,F108-F100,0) -> 0 | F108: 0 | H108: =F108-F100 -> 0
B109: 14 | C109: 0 | D109: 0 | F109: 0
B110: 14 | C110: 0 | D110: 0 | F110: 0
B111: 14 | C111: 0 | D111: 0 | F111: 0
B112: 14 | C112: 0 | D112: 0 | F112: 0
B113: 14 | C113: 0 | D113: 0 | F113: 0
B114: 14 | C114: 0 | D114: 0 | F114: 0
B115: 14 | C115: 0 | D115: 0 | F115: 0
B116: 14 | C116: 0 | D116: 0 | E116: =IF(H116>0,F116-F108,0) -> 0 | F116: 0 | H116: =F116-F108 -> 0
B117: 15 | C117: 0 | D117: 0 | F117: 0
B118: 15 | C118: 0 | D118: 0 | F118: 0
B119: 15 | C119: 0 | D119: 0 | F119: 0
B120: 15 | C120: 0 | D120: 0 | F120: 0
B121: 15 | C121: 0 | D121: 0 | F121: 0
B122: 15 | C122: 0 | D122: 0 | F122: 0
B123: 15 | C123: 0 | D123: 0 | F123: 0
B124: 15 | C124: 0 | D124: 0 | E124: =IF(H124>0,F124-F116,0) -> 0 | F124: 0 | H124: =F124-F116 -> 0
B125: Totals | C125: =SUM(C5:C124) -> 0 | D125: =SUM(D5:D124) -> 0
A126: =COUNT(A5:A124) -> 0 | D126: =COUNTIF(D5:D124,">500") -> 0

Sheet Air
E1: Unit Weight | G1: Plastic | H1: Plastic | I1: Actual | L1: Targets | AB1: Average | AD1: Average | AF1: Average Loss | AH1: TARGETS
D2: Net Concrete | E2: (lbs/ft^3) | G2: Air Content | H2: Air Content | I2: Air | L2: Target Air | M2: Air Limits
D3: Weight | E3: Enter Vol. | G3: Before Paver | H3: After Paver | I3: Loss | L3: Content | M3: (%) | AB3: Loss Date | AD3: Loss | AF3: of Consecutive | AH3: Date | AI3: Rounded | AJ3: Air Limits
A4: Date | B4: Test # | C4: Paver ID# | D4: (lbs) | E4: 0.249 | F4: Station | G4: (%) | H4: (%) | I4: (%) | L4: (%) | M4: Upper | N4: Lower | AF4: Dates | AI4: Target Air | AJ4: (%) | AM4: date | AN4: air | AO4: upper | AP4: lower | AQ4: target
B5: =IF(A5="","",1) ->  | E5: =IF((D5>0),(D5/$E$4),#N/A) ->  | I5: =IF(H5="","",(G5-H5)) ->  | J5: =IF(A5="","",IF(AND(G5>1,H5>0),MROUND((6.5+I5),0.5),IF(AND(A5<>"",H5=""),J4))) ->  | L5: 8 | M5: =IF(L5="","",L5+2) -> 10 | N5: =IF(L5="","",L5-2) -> 6 | O5: =I5 ->  | P5: =IF(AND(H5="",A4=A5),P4,IF(AND(A4=A5,H5>1),O5+P4,IF(H5="",0,IF(H5>0,O5)))) -> 0 | Q5: =IF(AND(A5=A4,H5>1),Q4+1,IF(AND(H5="",A5=A4),Q4,IF(AND(H5="",P5=0),0,1))) -> 0 | R5: =IF(A5=A4,R4+1,1) -> 1 | S5: =IF(AND(R5>=R6,Q5>0),P5/Q5,"") ->  | AI5: (%) | AJ5: Upper | AK5: Lower | AM5: =IF(A5="",#N/A,A5) ->  | AN5: =IF(AM5="","",G5) ->  | AO5: =IF(AM5="","",AQ5+1.5) ->  | AP5: =IF(AM5="","",AQ6-1) ->  | AQ5: =IF(AM5="","",AI7) -> 
B6: =IF(A6="","",B5+1) ->  | E6: =IF((D6>0),(D6/$E$4),#N/A) ->  | L6: 8 | M6: =IF(L6="","",L6+2) -> 10 | N6: =IF(L6="","",L6-2) -> 6 | P6: 0 | Q6: 0 | R6: 2 | S6: =IF(AND(R6>=R7,Q6>0),P6/Q6,"") ->  | T6: =IF(AND(Y6="",Z6=""),0,1) -> 0 | U6: =IF(AND(Y6="",Z6=""),"",A6) ->  | V6: =IF(AND(R6>=R7,Q6>0),1,"") ->  | W6: =COUNT(V$5:V6) -> 0 | X6: =IF(W5>=2,"",W5) -> 0 | Y6: =IF(X6<X7,S6+6,"") ->  | Z6: =IF(S6="","",IF(AND(X6="",S6>0),S6+6,"")) ->  | AA6: =IF(Z6="","",ABS($AI$6-Z6)) ->  | AB6: =VLOOKUP(1,count,2,FALSE) ->  | AC6: =VLOOKUP(AB6,time,5,FALSE) ->  | AD6: =AC6-6 ->  | AM6: =IF(A6="",#N/A,A6) ->  | AO6: =IF(AM6=$AM$5,AQ6+1.5,IF(AM5="","",AQ6+1.5)) ->  | AP6: =IF(AM6=$AM$5,AQ6-1,IF(AN5="","",AQ6-1)) ->  | AQ6: =IF(AM6=AM5,AQ5,VLOOKUP(AM6,graph,2,FALSE)) -> 
B7: =IF(A7="","",B6+1) ->  | L7: 8 | M7: 10 | N7: 6 | P7: 0 | Q7: 0 | R7: 3 | T7: =IF(AND(Y7="",Z7=""),0,COUNT(V$6:$V7)) -> 0 | V7: =IF(AND(R7>=R8,Q7>0),1,"") ->  | W7: =COUNT(V$5:V7) -> 0 | X7: =IF(W6>=2,"",W6) -> 0 | AB7: =VLOOKUP(2,count,2,FALSE) ->  | AC7: =VLOOKUP(AB7,time,5,FALSE) ->  | AD7: =AC7-6 ->  | AH7: =AB6 ->  | AI7: 7.5 | AJ7: =IF($AI7="",#N/A,($AI7+1.5)) -> 9 | AK7: =IF($AI7="",#N/A,($AI7-1)) -> 6.5 | AO7: =IF(AM7=$AM$5,AQ7+1.5,IF(AM6="","",AQ7+1.5)) ->  | AP7: =IF(AM7=$AM$5,AQ7-1,IF(AN6="","",AQ7-1)) ->  | AQ7: =IF(AM7=AM6,AQ6,VLOOKUP(AM7,graph,2,FALSE)) -> 
L8: 8 | M8: 10 | N8: 6 | P8: 0 | Q8: 0 | R8: 4 | T8: =IF(AND(Y8="",Z8=""),0,COUNT(V$6:$V8)) -> 0 | W8: =COUNT(V$5:V8) -> 0 | X8: 0 | AB8: =VLOOKUP(3,count,2,FALSE) ->  | AC8: =VLOOKUP(AB8,time,6,FALSE) ->  | AE8: =AVERAGE(AC7:AC8) ->  | AF8: =AE8-6 ->  | AH8: =AB7 ->  | AI8: =MROUND(AC6,0.5) ->  | AJ8: =IF($AI8="",#N/A,($AI8+1.5)) ->  | AK8: =IF($AI8="",#N/A,($AI8-1)) -> 
L9: 8 | M9: 10 | N9: 6 | P9: 0 | Q9: 0 | R9: 5 | T9: =IF(AND(Y9="",Z9=""),0,COUNT(V$6:$V9)) -> 0 | W9: =COUNT(V$5:V9) -> 0 | X9: 0 | AB9: =VLOOKUP(4,count,2,FALSE) ->  | AC9: =VLOOKUP(AB9,time,6,FALSE) ->  | AF9: =AE9-6 ->  | AI9: =MROUND(AC6,0.5) -> 
L10: 8 | M10: 10 | N10: 6 | P10: 0 | Q10: 0 | R10: 6 | T10: =IF(AND(Y10="",Z10=""),0,COUNT(V$6:$V10)) -> 0 | W10: =COUNT(V$5:V10) -> 0 | X10: =IF(W9>=2,"",W9) -> 0 | AB10: =VLOOKUP(5,count,2,FALSE) ->  | AI10: =IF(ABS(AE8-AC6)>0.5,MROUND(AE8,0.5),AI9) -> 
L11: 8 | M11: 10 | N11: 6 | P11: 0 | Q11: 0 | R11: 7 | T11: =IF(AND(Y11="",Z11=""),0,COUNT(V$6:$V11)) -> 0 | W11: =COUNT(V$5:V11) -> 0 | X11: 0 | Z11: =IF(S11="","",IF(AND(X11="",S11>0),S11+6,"")) ->  | AB11: =VLOOKUP(6,count,2,FALSE) ->  | AI11: =IF(ABS(AE9-AE8)>0.5,MROUND(AE9,0.5),AI10) ->  | AP11: =IF(AM11=$AM$5,AQ11-1,IF(AN10="","",AQ11-1)) -> 
L12: 8 | M12: 10 | N12: 6 | P12: 0 | Q12: 0 | R12: 8 | T12: =IF(AND(Y12="",Z12=""),0,COUNT(V$6:$V12)) -> 0 | W12: =COUNT(V$5:V12) -> 0 | X12: 0 | AB12: =VLOOKUP(7,count,2,FALSE) -> 
L13: 8 | M13: 10 | N13: 6 | P13: 0 | Q13: 0 | R13: 9 | T13: =IF(AND(Y13="",Z13=""),0,COUNT(V$6:$V13)) -> 0 | W13: =COUNT(V$5:V13) -> 0 | X13: 0 | AB13: =VLOOKUP(8,count,2,FALSE) -> 
L14: 8 | M14: 10 | N14: 6 | P14: 0 | Q14: 0 | R14: 10 | T14: =IF(AND(Y14="",Z14=""),0,COUNT(V$6:$V14)) -> 0 | W14: =COUNT(V$5:V14) -> 0 | X14: 0 | AB14: =VLOOKUP(9,count,2,FALSE) -> 
L15: 8 | M15: 10 | N15: 6 | P15: 0 | Q15: 0 | R15: 11 | T15: =IF(AND(Y15="",Z15=""),0,COUNT(V$6:$V15)) -> 0 | W15: =COUNT(V$5:V15) -> 0 | X15: 0 | AB15: =VLOOKUP(10,count,2,FALSE) -> 
L16: 8 | M16: 10 | N16: 6 | P16: 0 | Q16: 0 | R16: 12 | T16: =IF(AND(Y16="",Z16=""),0,COUNT(V$6:$V16)) -> 0 | W16: =COUNT(V$5:V16) -> 0 | X16: 0 | AB16: =VLOOKUP(11,count,2,FALSE) -> 
L17: 8 | M17: 10 | N17: 6 | P17: 0 | Q17: 0 | R17: 13 | T17: =IF(AND(Y17="",Z17=""),0,COUNT(V$6:$V17)) -> 0 | W17: =COUNT(V$5:V17) -> 0 | X17: 0 | AB17: =VLOOKUP(12,count,2,FALSE) -> 
L18: 8 | M18: 10 | N18: 6 | P18: 0 | Q18: 0 | R18: 14 | T18: =IF(AND(Y18="",Z18=""),0,COUNT(V$6:$V18)) -> 0 | W18: =COUNT(V$5:V18) -> 0 | X18: 0 | AB18: =VLOOKUP(13,count,2,FALSE) -> 
L19: 8 | M19: 10 | N19: 6 | P19: 0 | Q19: 0 | R19: 15 | T19: =IF(AND(Y19="",Z19=""),0,COUNT(V$6:$V19)) -> 0 | W19: =COUNT(V$5:V19) -> 0 | X19: 0 | AB19: =VLOOKUP(14,count,2,FALSE) -> 
L20: 8 | M20: 10 | N20: 6 | P20: 0 | Q20: 0 | R20: 16 | T20: =IF(AND(Y20="",Z20=""),0,COUNT(V$6:$V20)) -> 0 | W20: =COUNT(V$5:V20) -> 0 | X20: 0 | AB20: =VLOOKUP(15,count,2,FALSE) -> 
L21: 8 | M21: 10 | N21: 6 | P21: 0 | Q21: 0 | R21: 17 | T21: =IF(AND(Y21="",Z21=""),0,COUNT(V$6:$V21)) -> 0 | W21: =COUNT(V$5:V21) -> 0 | X21: 0 | AB21: =VLOOKUP(16,count,2,FALSE) -> 
L22: 8 | M22: 10 | N22: 6 | P22: 0 | Q22: 0 | R22: 18 | T22: =IF(AND(Y22="",Z22=""),0,COUNT(V$6:$V22)) -> 0 | W22: =COUNT(V$5:V22) -> 0 | X22: 0 | AB22: =VLOOKUP(17,count,2,FALSE) -> 
L23: 8 | M23: 10 | N23: 6 | P23: 0 | Q23: 0 | R23: 19 | T23: =IF(AND(Y23="",Z23=""),0,COUNT(V$6:$V23)) -> 0 | W23: =COUNT(V$5:V23) -> 0 | X23: 0 | AB23: =VLOOKUP(18,count,2,FALSE) -> 
L24: 8 | M24: 10 | N24: 6 | P24: 0 | Q24: 0 | R24: 20 | T24: =IF(AND(Y24="",Z24=""),0,COUNT(V$6:$V24)) -> 0 | W24: =COUNT(V$5:V24) -> 0 | X24: 0 | AB24: =VLOOKUP(19,count,2,FALSE) -> 
L25: 8 | M25: 10 | N25: 6 | P25: 0 | Q25: 0 | R25: 21 | T25: =IF(AND(Y25="",Z25=""),0,COUNT(V$6:$V25)) -> 0 | W25: =COUNT(V$5:V25) -> 0 | X25: 0 | AB25: =VLOOKUP(20,count,2,FALSE) -> 
L26: 8 | M26: 10 | N26: 6 | P26: 0 | Q26: 0 | R26: 22 | T26: =IF(AND(Y26="",Z26=""),0,COUNT(V$6:$V26)) -> 0 | W26: =COUNT(V$5:V26) -> 0 | X26: 0 | AB26: =VLOOKUP(21,count,2,FALSE) -> 
L27: 8 | M27: 10 | N27: 6 | P27: 0 | Q27: 0 | R27: 23 | T27: =IF(AND(Y27="",Z27=""),0,COUNT(V$6:$V27)) -> 0 | W27: =COUNT(V$5:V27) -> 0 | X27: 0 | AB27: =VLOOKUP(22,count,2,FALSE) -> 
L28: 8 | M28: 10 | N28: 6 | P28: 0 | Q28: 0 | R28: 24 | T28: =IF(AND(Y28="",Z28=""),0,COUNT(V$6:$V28)) -> 0 | W28: =COUNT(V$5:V28) -> 0 | X28: 0 | AB28: =VLOOKUP(23,count,2,FALSE) -> 
L29: 8 | M29: 10 | N29: 6 | P29: 0 | Q29: 0 | R29: 25 | T29: =IF(AND(Y29="",Z29=""),0,COUNT(V$6:$V29)) -> 0 | W29: =COUNT(V$5:V29) -> 0 | X29: 0 | AB29: =VLOOKUP(24,count,2,FALSE) -> 
L30: 8 | M30: 10 | N30: 6 | P30: 0 | Q30: 0 | R30: 26 | T30: =IF(AND(Y30="",Z30=""),0,COUNT(V$6:$V30)) -> 0 | W30: =COUNT(V$5:V30) -> 0 | X30: 0 | AB30: =VLOOKUP(25,count,2,FALSE) -> 
L31: 8 | M31: 10 | N31: 6 | P31: 0 | Q31: 0 | R31: 27 | T31: =IF(AND(Y31="",Z31=""),0,COUNT(V$6:$V31)) -> 0 | W31: =COUNT(V$5:V31) -> 0 | X31: 0 | AB31: =VLOOKUP(26,count,2,FALSE) -> 
L32: 8 | M32: 10 | N32: 6 | P32: 0 | Q32: 0 | R32: 28 | T32: =IF(AND(Y32="",Z32=""),0,COUNT(V$6:$V32)) -> 0 | W32: =COUNT(V$5:V32) -> 0 | X32: 0 | AB32: =VLOOKUP(27,count,2,FALSE) -> 
L33: 8 | M33: 10 | N33: 6 | P33: 0 | Q33: 0 | R33: 29 | T33: =IF(AND(Y33="",Z33=""),0,COUNT(V$6:$V33)) -> 0 | W33: =COUNT(V$5:V33) -> 0 | X33: 0 | AB33: =VLOOKUP(28,count,2,FALSE) -> 
L34: 8 | M34: 10 | N34: 6 | P34: 0 | Q34: 0 | R34: 30 | T34: =IF(AND(Y34="",Z34=""),0,COUNT(V$6:$V34)) -> 0 | W34: =COUNT(V$5:V34) -> 0 | X34: 0 | AB34: =VLOOKUP(29,count,2,FALSE) -> 
L35: 8 | M35: 10 | N35: 6 | P35: 0 | Q35: 0 | R35: 31 | T35: =IF(AND(Y35="",Z35=""),0,COUNT(V$6:$V35)) -> 0 | W35: =COUNT(V$5:V35) -> 0 | X35: 0 | AB35: =VLOOKUP(30,count,2,FALSE) -> 
L36: 8 | M36: 10 | N36: 6 | P36: 0 | Q36: 0 | R36: 32 | T36: =IF(AND(Y36="",Z36=""),0,COUNT(V$6:$V36)) -> 0 | W36: =COUNT(V$5:V36) -> 0 | X36: 0 | AB36: =VLOOKUP(31,count,2,FALSE) -> 
I37: =IF(H37="","",(G37-H37)) ->  | J37: =IF(A37="","",IF(AND(G37>1,H37>0),MROUND((6.5+I37),0.5),IF(AND(A37<>"",H37=""),J36))) ->  | L37: 8 | M37: 10 | N37: 6 | O37: =I37 ->  | P37: =IF(AND(H37="",A36=A37),P36,IF(AND(A36=A37,H37>1),O37+P36,IF(H37="",0,IF(H37>0,O37)))) -> 0 | Q37: =IF(AND(A37=A36,H37>1),Q36+1,IF(AND(H37="",A37=A36),Q36,IF(AND(H37="",P37=0),0,1))) -> 0 | R37: =IF(A37=A36,R36+1,1) -> 33 | T37: =IF(AND(Y37="",Z37=""),0,COUNT(V$6:$V37)) -> 0 | W37: =COUNT(V$5:V37) -> 0 | X37: 0 | AB37: =VLOOKUP(32,count,2,FALSE) ->  | AN37: =IF(AM37="","",G37) -> 
L38: 8 | M38: 10 | N38: 6 | P38: 0 | Q38: 0 | R38: 34 | T38: =IF(AND(Y38="",Z38=""),0,COUNT(V$6:$V38)) -> 0 | U38: =IF(AND(Y38="",Z38=""),"",A38) ->  | W38: =COUNT(V$5:V38) -> 0 | X38: 0 | Y38: =IF(X38<X39,S38+6,"") ->  | Z38: =IF(S38="","",IF(AND(X38="",S38>0),S38+6,"")) ->  | AA38: =IF(Z38="","",ABS($AI$6-Z38)) ->  | AB38: =VLOOKUP(33,count,2,FALSE) -> 
L39: 8 | M39: 10 | N39: 6 | P39: 0 | Q39: 0 | R39: 35 | T39: =IF(AND(Y39="",Z39=""),0,COUNT(V$6:$V39)) -> 0 | W39: =COUNT(V$5:V39) -> 0 | X39: 0 | AB39: =VLOOKUP(34,count,2,FALSE) ->  | AH39: =AB38 ->  | AJ39: =IF($AI39="",#N/A,($AI39+1.5)) ->  | AK39: =IF($AI39="",#N/A,($AI39-1)) -> 
L40: 8 | M40: 10 | N40: 6 | P40: 0 | Q40: 0 | R40: 36 | T40: =IF(AND(Y40="",Z40=""),0,COUNT(V$6:$V40)) -> 0 | W40: =COUNT(V$5:V40) -> 0 | X40: 0 | AB40: =VLOOKUP(35,count,2,FALSE) ->  | AE40: =AVERAGE(AC39:AC40) -> 
L41: 8 | M41: 10 | N41: 6 | P41: 0 | Q41: 0 | R41: 37 | T41: =IF(AND(Y41="",Z41=""),0,COUNT(V$6:$V41)) -> 0 | W41: =COUNT(V$5:V41) -> 0 | X41: 0 | AB41: =VLOOKUP(36,count,2,FALSE) -> 
L42: 8 | M42: 10 | N42: 6 | P42: 0 | Q42: 0 | R42: 38 | T42: =IF(AND(Y42="",Z42=""),0,COUNT(V$6:$V42)) -> 0 | W42: =COUNT(V$5:V42) -> 0 | X42: 0 | AB42: =VLOOKUP(37,count,2,FALSE) -> 
L43: 8 | M43: 10 | N43: 6 | P43: 0 | Q43: 0 | R43: 39 | T43: =IF(AND(Y43="",Z43=""),0,COUNT(V$6:$V43)) -> 0 | W43: =COUNT(V$5:V43) -> 0 | X43: 0 | AB43: =VLOOKUP(38,count,2,FALSE) -> 
L44: 8 | M44: 10 | N44: 6 | P44: 0 | Q44: 0 | R44: 40 | T44: =IF(AND(Y44="",Z44=""),0,COUNT(V$6:$V44)) -> 0 | W44: =COUNT(V$5:V44) -> 0 | X44: 0 | AB44: =VLOOKUP(39,count,2,FALSE) -> 
L45: 8 | M45: 10 | N45: 6 | P45: 0 | Q45: 0 | R45: 41 | T45: =IF(AND(Y45="",Z45=""),0,COUNT(V$6:$V45)) -> 0 | W45: =COUNT(V$5:V45) -> 0 | X45: 0 | AB45: =VLOOKUP(40,count,2,FALSE) -> 
L46: 8 | M46: 10 | N46: 6 | P46: 0 | Q46: 0 | R46: 42 | T46: =IF(AND(Y46="",Z46=""),0,COUNT(V$6:$V46)) -> 0 | W46: =COUNT(V$5:V46) -> 0 | X46: 0 | AB46: =VLOOKUP(41,count,2,FALSE) -> 
L47: 8 | M47: 10 | N47: 6 | P47: 0 | Q47: 0 | R47: 43 | T47: =IF(AND(Y47="",Z47=""),0,COUNT(V$6:$V47)) -> 0 | W47: =COUNT(V$5:V47) -> 0 | X47: 0 | AB47: =VLOOKUP(42,count,2,FALSE) -> 
L48: 8 | M48: 10 | N48: 6 | P48: 0 | Q48: 0 | R48: 44 | T48: =IF(AND(Y48="",Z48=""),0,COUNT(V$6:$V48)) -> 0 | W48: =COUNT(V$5:V48) -> 0 | X48: 0 | AB48: =VLOOKUP(43,count,2,FALSE) -> 
L49: 8 | M49: 10 | N49: 6 | P49: 0 | Q49: 0 | R49: 45 | T49: =IF(AND(Y49="",Z49=""),0,COUNT(V$6:$V49)) -> 0 | W49: =COUNT(V$5:V49) -> 0 | X49: 0 | AB49: =VLOOKUP(44,count,2,FALSE) -> 
L50: 8 | M50: 10 | N50: 6 | P50: 0 | Q50: 0 | R50: 46 | T50: =IF(AND(Y50="",Z50=""),0,COUNT(V$6:$V50)) -> 0 | W50: =COUNT(V$5:V50) -> 0 | X50: 0 | AB50: =VLOOKUP(45,count,2,FALSE) -> 
L51: 8 | M51: 10 | N51: 6 | P51: 0 | Q51: 0 | R51: 47 | T51: =IF(AND(Y51="",Z51=""),0,COUNT(V$6:$V51)) -> 0 | W51: =COUNT(V$5:V51) -> 0 | X51: 0 | AB51: =VLOOKUP(46,count,2,FALSE) -> 
L52: 8 | M52: 10 | N52: 6 | P52: 0 | Q52: 0 | R52: 48 | T52: =IF(AND(Y52="",Z52=""),0,COUNT(V$6:$V52)) -> 0 | W52: =COUNT(V$5:V52) -> 0 | X52: 0 | AB52: =VLOOKUP(47,count,2,FALSE) -> 
L53: 8 | M53: 10 | N53: 6 | P53: 0 | Q53: 0 | R53: 49 | T53: =IF(AND(Y53="",Z53=""),0,COUNT(V$6:$V53)) -> 0 | W53: =COUNT(V$5:V53) -> 0 | X53: 0 | AB53: =VLOOKUP(48,count,2,FALSE) -> 
L54: 8 | M54: 10 | N54: 6 | P54: 0 | Q54: 0 | R54: 50 | T54: =IF(AND(Y54="",Z54=""),0,COUNT(V$6:$V54)) -> 0 | W54: =COUNT(V$5:V54) -> 0 | X54: 0 | AB54: =VLOOKUP(49,count,2,FALSE) -> 
L55: 8 | M55: 10 | N55: 6 | P55: 0 | Q55: 0 | R55: 51 | T55: =IF(AND(Y55="",Z55=""),0,COUNT(V$6:$V55)) -> 0 | W55: =COUNT(V$5:V55) -> 0 | X55: 0 | AB55: =VLOOKUP(50,count,2,FALSE) -> 
L56: 8 | M56: 10 | N56: 6 | P56: 0 | Q56: 0 | R56: 52 | T56: =IF(AND(Y56="",Z56=""),0,COUNT(V$6:$V56)) -> 0 | W56: =COUNT(V$5:V56) -> 0 | X56: 0 | AB56: =VLOOKUP(51,count,2,FALSE) -> 
L57: 8 | M57: 10 | N57: 6 | P57: 0 | Q57: 0 | R57: 53 | T57: =IF(AND(Y57="",Z57=""),0,COUNT(V$6:$V57)) -> 0 | W57: =COUNT(V$5:V57) -> 0 | X57: 0 | AB57: =VLOOKUP(52,count,2,FALSE) -> 
L58: 8 | M58: 10 | N58: 6 | P58: 0 | Q58: 0 | R58: 54 | T58: =IF(AND(Y58="",Z58=""),0,COUNT(V$6:$V58)) -> 0 | W58: =COUNT(V$5:V58) -> 0 | X58: 0 | AB58: =VLOOKUP(53,count,2,FALSE) -> 
L59: 8 | M59: 10 | N59: 6 | P59: 0 | Q59: 0 | R59: 55 | T59: =IF(AND(Y59="",Z59=""),0,COUNT(V$6:$V59)) -> 0 | W59: =COUNT(V$5:V59) -> 0 | X59: 0 | AB59: =VLOOKUP(54,count,2,FALSE) -> 
L60: 8 | M60: 10 | N60: 6 | P60: 0 | Q60: 0 | R60: 56 | T60: =IF(AND(Y60="",Z60=""),0,COUNT(V$6:$V60)) -> 0 | W60: =COUNT(V$5:V60) -> 0 | X60: 0 | AB60: =VLOOKUP(55,count,2,FALSE) -> 
L61: 8 | M61: 10 | N61: 6 | P61: 0 | Q61: 0 | R61: 57 | T61: =IF(AND(Y61="",Z61=""),0,COUNT(V$6:$V61)) -> 0 | W61: =COUNT(V$5:V61) -> 0 | X61: 0 | AB61: =VLOOKUP(56,count,2,FALSE) -> 
L62: 8 | M62: 10 | N62: 6 | P62: 0 | Q62: 0 | R62: 58 | T62: =IF(AND(Y62="",Z62=""),0,COUNT(V$6:$V62)) -> 0 | W62: =COUNT(V$5:V62) -> 0 | X62: 0 | AB62: =VLOOKUP(57,count,2,FALSE) -> 
L63: 8 | M63: 10 | N63: 6 | P63: 0 | Q63: 0 | R63: 59 | T63: =IF(AND(Y63="",Z63=""),0,COUNT(V$6:$V63)) -> 0 | W63: =COUNT(V$5:V63) -> 0 | X63: 0 | AB63: =VLOOKUP(58,count,2,FALSE) -> 
L64: 8 | M64: 10 | N64: 6 | P64: 0 | Q64: 0 | R64: 60 | T64: =IF(AND(Y64="",Z64=""),0,COUNT(V$6:$V64)) -> 0 | W64: =COUNT(V$5:V64) -> 0 | X64: 0 | AB64: =VLOOKUP(59,count,2,FALSE) -> 
L65: 8 | M65: 10 | N65: 6 | P65: 0 | Q65: 0 | R65: 61 | T65: =IF(AND(Y65="",Z65=""),0,COUNT(V$6:$V65)) -> 0 | W65: =COUNT(V$5:V65) -> 0 | X65: 0 | AB65: =VLOOKUP(60,count,2,FALSE) -> 
L66: 8 | M66: 10 | N66: 6 | P66: 0 | Q66: 0 | R66: 62 | T66: =IF(AND(Y66="",Z66=""),0,COUNT(V$6:$V66)) -> 0 | W66: =COUNT(V$5:V66) -> 0 | X66: 0 | AB66: =VLOOKUP(61,count,2,FALSE) -> 
L67: 8 | M67: 10 | N67: 6 | P67: 0 | Q67: 0 | R67: 63 | T67: =IF(AND(Y67="",Z67=""),0,COUNT(V$6:$V67)) -> 0 | W67: =COUNT(V$5:V67) -> 0 | X67: 0 | AB67: =VLOOKUP(62,count,2,FALSE) -> 
L68: 8 | M68: 10 | N68: 6 | P68: 0 | Q68: 0 | R68: 64 | T68: =IF(AND(Y68="",Z68=""),0,COUNT(V$6:$V68)) -> 0 | W68: =COUNT(V$5:V68) -> 0 | X68: 0 | AB68: =VLOOKUP(63,count,2,FALSE) -> 
I69: =IF(H69="","",(G69-H69)) ->  | J69: =IF(A69="","",IF(AND(G69>1,H69>0),MROUND((6.5+I69),0.5),IF(AND(A69<>"",H69=""),J68))) ->  | L69: 8 | M69: 10 | N69: 6 | O69: =I69 ->  | P69: =IF(AND(H69="",A68=A69),P68,IF(AND(A68=A69,H69>1),O69+P68,IF(H69="",0,IF(H69>0,O69)))) -> 0 | Q69: =IF(AND(A69=A68,H69>1),Q68+1,IF(AND(H69="",A69=A68),Q68,IF(AND(H69="",P69=0),0,1))) -> 0 | R69: =IF(A69=A68,R68+1,1) -> 65 | T69: =IF(AND(Y69="",Z69=""),0,COUNT(V$6:$V69)) -> 0 | W69: =COUNT(V$5:V69) -> 0 | X69: 0 | AB69: =VLOOKUP(64,count,2,FALSE) ->  | AN69: =IF(AM69="","",G69) -> 
E70: =IF((D70>0),(D70/$E$4),#N/A) ->  | L70: 8 | M70: =IF(L70="","",L70+2) -> 10 | N70: =IF(L70="","",L70-2) -> 6 | P70: 0 | Q70: 0 | R70: 66 | S70: =IF(AND(R70>=R71,Q70>0),P70/Q70,"") ->  | T70: =IF(AND(Y70="",Z70=""),0,COUNT(V$6:$V70)) -> 0 | U70: =IF(AND(Y70="",Z70=""),"",A70) ->  | W70: =COUNT(V$5:V70) -> 0 | X70: 0 | Y70: =IF(X70<X71,S70+6,"") ->  | Z70: =IF(S70="","",IF(AND(X70="",S70>0),S70+6,"")) ->  | AA70: =IF(Z70="","",ABS($AI$6-Z70)) ->  | AB70: =VLOOKUP(65,count,2,FALSE) ->  | AM70: =IF(A70="",#N/A,A70) -> 
B71: =IF(A71="","",B70+1) ->  | L71: 8 | M71: 10 | N71: 6 | P71: 0 | Q71: 0 | R71: 67 | T71: =IF(AND(Y71="",Z71=""),0,COUNT(V$6:$V71)) -> 0 | V71: =IF(AND(R71>=R72,Q71>0),1,"") ->  | W71: =COUNT(V$5:V71) -> 0 | X71: =IF(W70>=2,"",W70) -> 0 | AB71: =VLOOKUP(66,count,2,FALSE) ->  | AD71: =AC71-6 ->  | AH71: =AB70 ->  | AJ71: =IF($AI71="",#N/A,($AI71+1.5)) ->  | AK71: =IF($AI71="",#N/A,($AI71-1)) ->  | AO71: =IF(AM71=$AM$5,AQ71+1.5,IF(AM70="","",AQ71+1.5)) ->  | AP71: =IF(AM71=$AM$5,AQ71-1,IF(AN70="","",AQ71-1)) ->  | AQ71: =IF(AM71=AM70,AQ70,VLOOKUP(AM71,graph,2,FALSE)) -> 
L72: 8 | M72: 10 | N72: 6 | P72: 0 | Q72: 0 | R72: 68 | T72: =IF(AND(Y72="",Z72=""),0,COUNT(V$6:$V72)) -> 0 | W72: =COUNT(V$5:V72) -> 0 | X72: 0 | AB72: =VLOOKUP(67,count,2,FALSE) ->  | AE72: =AVERAGE(AC71:AC72) -> 
L73: 8 | M73: 10 | N73: 6 | P73: 0 | Q73: 0 | R73: 69 | T73: =IF(AND(Y73="",Z73=""),0,COUNT(V$6:$V73)) -> 0 | W73: =COUNT(V$5:V73) -> 0 | X73: 0 | AB73: =VLOOKUP(68,count,2,FALSE) ->  | AC73: =VLOOKUP(AB73,time,6,FALSE) ->  | AF73: =AE73-6 -> 
L74: 8 | M74: 10 | N74: 6 | P74: 0 | Q74: 0 | R74: 70 | T74: =IF(AND(Y74="",Z74=""),0,COUNT(V$6:$V74)) -> 0 | W74: =COUNT(V$5:V74) -> 0 | X74: 0 | AB74: =VLOOKUP(69,count,2,FALSE) -> 
L75: 8 | M75: 10 | N75: 6 | P75: 0 | Q75: 0 | R75: 71 | T75: =IF(AND(Y75="",Z75=""),0,COUNT(V$6:$V75)) -> 0 | W75: =COUNT(V$5:V75) -> 0 | X75: 0 | AB75: =VLOOKUP(70,count,2,FALSE) ->  | AI75: =IF(ABS(AE73-AE72)>0.5,MROUND(AE73,0.5),AI74) -> 
L76: 8 | M76: 10 | N76: 6 | P76: 0 | Q76: 0 | R76: 72 | T76: =IF(AND(Y76="",Z76=""),0,COUNT(V$6:$V76)) -> 0 | W76: =COUNT(V$5:V76) -> 0 | X76: 0 | AB76: =VLOOKUP(71,count,2,FALSE) -> 
L77: 8 | M77: 10 | N77: 6 | P77: 0 | Q77: 0 | R77: 73 | T77: =IF(AND(Y77="",Z77=""),0,COUNT(V$6:$V77)) -> 0 | W77: =COUNT(V$5:V77) -> 0 | X77: 0 | AB77: =VLOOKUP(72,count,2,FALSE) -> 
L78: 8 | M78: 10 | N78: 6 | P78: 0 | Q78: 0 | R78: 74 | T78: =IF(AND(Y78="",Z78=""),0,COUNT(V$6:$V78)) -> 0 | W78: =COUNT(V$5:V78) -> 0 | X78: 0 | AB78: =VLOOKUP(73,count,2,FALSE) -> 
L79: 8 | M79: 10 | N79: 6 | P79: 0 | Q79: 0 | R79: 75 | T79: =IF(AND(Y79="",Z79=""),0,COUNT(V$6:$V79)) -> 0 | W79: =COUNT(V$5:V79) -> 0 | X79: 0 | AB79: =VLOOKUP(74,count,2,FALSE) -> 
L80: 8 | M80: 10 | N80: 6 | P80: 0 | Q80: 0 | R80: 76 | T80: =IF(AND(Y80="",Z80=""),0,COUNT(V$6:$V80)) -> 0 | W80: =COUNT(V$5:V80) -> 0 | X80: 0 | AB80: =VLOOKUP(75,count,2,FALSE) -> 
L81: 8 | M81: 10 | N81: 6 | P81: 0 | Q81: 0 | R81: 77 | T81: =IF(AND(Y81="",Z81=""),0,COUNT(V$6:$V81)) -> 0 | W81: =COUNT(V$5:V81) -> 0 | X81: 0 | AB81: =VLOOKUP(76,count,2,FALSE) -> 
L82: 8 | M82: 10 | N82: 6 | P82: 0 | Q82: 0 | R82: 78 | T82: =IF(AND(Y82="",Z82=""),0,COUNT(V$6:$V82)) -> 0 | W82: =COUNT(V$5:V82) -> 0 | X82: 0 | AB82: =VLOOKUP(77,count,2,FALSE) -> 
L83: 8 | M83: 10 | N83: 6 | P83: 0 | Q83: 0 | R83: 79 | T83: =IF(AND(Y83="",Z83=""),0,COUNT(V$6:$V83)) -> 0 | W83: =COUNT(V$5:V83) -> 0 | X83: 0 | AB83: =VLOOKUP(78,count,2,FALSE) -> 
L84: 8 | M84: 10 | N84: 6 | P84: 0 | Q84: 0 | R84: 80 | T84: =IF(AND(Y84="",Z84=""),0,COUNT(V$6:$V84)) -> 0 | W84: =COUNT(V$5:V84) -> 0 | X84: 0 | AB84: =VLOOKUP(79,count,2,FALSE) -> 
L85: 8 | M85: 10 | N85: 6 | P85: 0 | Q85: 0 | R85: 81 | T85: =IF(AND(Y85="",Z85=""),0,COUNT(V$6:$V85)) -> 0 | W85: =COUNT(V$5:V85) -> 0 | X85: 0 | AB85: =VLOOKUP(80,count,2,FALSE) -> 
L86: 8 | M86: 10 | N86: 6 | P86: 0 | Q86: 0 | R86: 82 | T86: =IF(AND(Y86="",Z86=""),0,COUNT(V$6:$V86)) -> 0 | W86: =COUNT(V$5:V86) -> 0 | X86: 0 | AB86: =VLOOKUP(81,count,2,FALSE) -> 
L87: 8 | M87: 10 | N87: 6 | P87: 0 | Q87: 0 | R87: 83 | T87: =IF(AND(Y87="",Z87=""),0,COUNT(V$6:$V87)) -> 0 | W87: =COUNT(V$5:V87) -> 0 | X87: 0 | AB87: =VLOOKUP(82,count,2,FALSE) -> 
L88: 8 | M88: 10 | N88: 6 | P88: 0 | Q88: 0 | R88: 84 | T88: =IF(AND(Y88="",Z88=""),0,COUNT(V$6:$V88)) -> 0 | W88: =COUNT(V$5:V88) -> 0 | X88: 0 | AB88: =VLOOKUP(83,count,2,FALSE) -> 
L89: 8 | M89: 10 | N89: 6 | P89: 0 | Q89: 0 | R89: 85 | T89: =IF(AND(Y89="",Z89=""),0,COUNT(V$6:$V89)) -> 0 | W89: =COUNT(V$5:V89) -> 0 | X89: 0 | AB89: =VLOOKUP(84,count,2,FALSE) -> 
L90: 8 | M90: 10 | N90: 6 | P90: 0 | Q90: 0 | R90: 86 | T90: =IF(AND(Y90="",Z90=""),0,COUNT(V$6:$V90)) -> 0 | W90: =COUNT(V$5:V90) -> 0 | X90: 0 | AB90: =VLOOKUP(85,count,2,FALSE) -> 
L91: 8 | M91: 10 | N91: 6 | P91: 0 | Q91: 0 | R91: 87 | T91: =IF(AND(Y91="",Z91=""),0,COUNT(V$6:$V91)) -> 0 | W91: =COUNT(V$5:V91) -> 0 | X91: 0 | AB91: =VLOOKUP(86,count,2,FALSE) -> 
L92: 8 | M92: 10 | N92: 6 | P92: 0 | Q92: 0 | R92: 88 | T92: =IF(AND(Y92="",Z92=""),0,COUNT(V$6:$V92)) -> 0 | W92: =COUNT(V$5:V92) -> 0 | X92: 0 | AB92: =VLOOKUP(87,count,2,FALSE) -> 
L93: 8 | M93: 10 | N93: 6 | P93: 0 | Q93: 0 | R93: 89 | T93: =IF(AND(Y93="",Z93=""),0,COUNT(V$6:$V93)) -> 0 | W93: =COUNT(V$5:V93) -> 0 | X93: 0 | AB93: =VLOOKUP(88,count,2,FALSE) -> 
L94: 8 | M94: 10 | N94: 6 | P94: 0 | Q94: 0 | R94: 90 | T94: =IF(AND(Y94="",Z94=""),0,COUNT(V$6:$V94)) -> 0 | W94: =COUNT(V$5:V94) -> 0 | X94: 0 | AB94: =VLOOKUP(89,count,2,FALSE) -> 
L95: 8 | M95: 10 | N95: 6 | P95: 0 | Q95: 0 | R95: 91 | T95: =IF(AND(Y95="",Z95=""),0,COUNT(V$6:$V95)) -> 0 | W95: =COUNT(V$5:V95) -> 0 | X95: 0 | AB95: =VLOOKUP(90,count,2,FALSE) -> 
L96: 8 | M96: 10 | N96: 6 | P96: 0 | Q96: 0 | R96: 92 | T96: =IF(AND(Y96="",Z96=""),0,COUNT(V$6:$V96)) -> 0 | W96: =COUNT(V$5:V96) -> 0 | X96: 0 | AB96: =VLOOKUP(91,count,2,FALSE) -> 
L97: 8 | M97: 10 | N97: 6 | P97: 0 | Q97: 0 | R97: 93 | T97: =IF(AND(Y97="",Z97=""),0,COUNT(V$6:$V97)) -> 0 | W97: =COUNT(V$5:V97) -> 0 | X97: 0 | AB97: =VLOOKUP(92,count,2,FALSE) -> 
L98: 8 | M98: 10 | N98: 6 | P98: 0 | Q98: 0 | R98: 94 | T98: =IF(AND(Y98="",Z98=""),0,COUNT(V$6:$V98)) -> 0 | W98: =COUNT(V$5:V98) -> 0 | X98: 0 | AB98: =VLOOKUP(93,count,2,FALSE) -> 
L99: 8 | M99: 10 | N99: 6 | P99: 0 | Q99: 0 | R99: 95 | T99: =IF(AND(Y99="",Z99=""),0,COUNT(V$6:$V99)) -> 0 | W99: =COUNT(V$5:V99) -> 0 | X99: 0 | AB99: =VLOOKUP(94,count,2,FALSE) -> 
L100: 8 | M100: 10 | N100: 6 | P100: 0 | Q100: 0 | R100: 96 | T100: =IF(AND(Y100="",Z100=""),0,COUNT(V$6:$V100)) -> 0 | W100: =COUNT(V$5:V100) -> 0 | X100: 0 | AB100: =VLOOKUP(95,count,2,FALSE) -> 
I101: =IF(H101="","",(G101-H101)) ->  | J101: =IF(A101="","",IF(AND(G101>1,H101>0),MROUND((6.5+I101),0.5),IF(AND(A101<>"",H101=""),J100))) ->  | L101: 8 | M101: 10 | N101: 6 | O101: =I101 ->  | P101: =IF(AND(H101="",A100=A101),P100,IF(AND(A100=A101,H101>1),O101+P100,IF(H101="",0,IF(H101>0,O101)))) -> 0 | Q101: =IF(AND(A101=A100,H101>1),Q100+1,IF(AND(H101="",A101=A100),Q100,IF(AND(H101="",P101=0),0,1))) -> 0 | R101: 97 | T101: =IF(AND(Y101="",Z101=""),0,COUNT(V$6:$V101)) -> 0 | W101: =COUNT(V$5:V101) -> 0 | X101: 0 | AB101: =VLOOKUP(96,count,2,FALSE) ->  | AN101: =IF(AM101="","",G101) -> 
I102: =IF(H102="","",(G102-H102)) ->  | L102: 8 | M102: 10 | N102: 6 | O102: =I102 ->  | P102: =IF(AND(H102="",A101=A102),P101,IF(AND(A101=A102,H102>1),O102+P101,IF(H102="",0,IF(H102>0,O102)))) -> 0 | Q102: =IF(AND(A102=A101,H102>1),Q101+1,IF(AND(H102="",A102=A101),Q101,IF(AND(H102="",P102=0),0,1))) -> 0 | R102: 98 | T102: =IF(AND(Y102="",Z102=""),0,COUNT(V$6:$V102)) -> 0 | W102: =COUNT(V$5:V102) -> 0 | X102: 0 | Y102: =IF(X102<X103,S102+6,"") ->  | AA102: =IF(Z102="","",ABS($AI$6-Z102)) ->  | AB102: =VLOOKUP(97,count,2,FALSE) -> 
I103: =IF(H103="","",(G103-H103)) ->  | L103: 8 | M103: 10 | N103: 6 | O103: =I103 ->  | P103: =IF(AND(H103="",A102=A103),P102,IF(AND(A102=A103,H103>1),O103+P102,IF(H103="",0,IF(H103>0,O103)))) -> 0 | Q103: =IF(AND(A103=A102,H103>1),Q102+1,IF(AND(H103="",A103=A102),Q102,IF(AND(H103="",P103=0),0,1))) -> 0 | R103: 99 | T103: =IF(AND(Y103="",Z103=""),0,COUNT(V$6:$V103)) -> 0 | W103: =COUNT(V$5:V103) -> 0 | X103: 0 | Y103: =IF(X103<X104,S103+6,"") ->  | AA103: =IF(Z103="","",ABS($AI$6-Z103)) ->  | AB103: =VLOOKUP(98,count,2,FALSE) -> 
I104: =IF(H104="","",(G104-H104)) ->  | L104: 8 | M104: 10 | N104: 6 | O104: =I104 ->  | P104: =IF(AND(H104="",A103=A104),P103,IF(AND(A103=A104,H104>1),O104+P103,IF(H104="",0,IF(H104>0,O104)))) -> 0 | Q104: =IF(AND(A104=A103,H104>1),Q103+1,IF(AND(H104="",A104=A103),Q103,IF(AND(H104="",P104=0),0,1))) -> 0 | R104: 100 | T104: =IF(AND(Y104="",Z104=""),0,COUNT(V$6:$V104)) -> 0 | W104: =COUNT(V$5:V104) -> 0 | X104: 0 | Y104: =IF(X104<X105,S104+6,"") ->  | AA104: =IF(Z104="","",ABS($AI$6-Z104)) ->  | AB104: =VLOOKUP(99,count,2,FALSE) ->  | AE104: =AVERAGE(AC103:AC104) -> 
I105: =IF(H105="","",(G105-H105)) ->  | L105: 8 | M105: 10 | N105: 6 | O105: =I105 ->  | P105: =IF(AND(H105="",A104=A105),P104,IF(AND(A104=A105,H105>1),O105+P104,IF(H105="",0,IF(H105>0,O105)))) -> 0 | Q105: =IF(AND(A105=A104,H105>1),Q104+1,IF(AND(H105="",A105=A104),Q104,IF(AND(H105="",P105=0),0,1))) -> 0 | R105: 101 | T105: =IF(AND(Y105="",Z105=""),0,COUNT(V$6:$V105)) -> 0 | W105: =COUNT(V$5:V105) -> 0 | X105: 0 | Y105: =IF(X105<X106,S105+6,"") ->  | AA105: =IF(Z105="","",ABS($AI$6-Z105)) ->  | AB105: =VLOOKUP(100,count,2,FALSE) ->  | AE105: =AVERAGE(AC104:AC105) ->  | AM105: =IF(A105="",#N/A,A105) -> 
L106: 8 | M106: 10 | N106: 6 | P106: 0 | Q106: 0 | R106: 102 | T106: =IF(AND(Y106="",Z106=""),0,COUNT(V$6:$V106)) -> 0 | W106: =COUNT(V$5:V106) -> 0 | X106: 0 | AB106: =VLOOKUP(101,count,2,FALSE) -> 
L107: 8 | M107: 10 | N107: 6 | P107: 0 | Q107: 0 | R107: 103 | T107: =IF(AND(Y107="",Z107=""),0,COUNT(V$6:$V107)) -> 0 | W107: =COUNT(V$5:V107) -> 0 | X107: 0 | AB107: =VLOOKUP(102,count,2,FALSE) -> 
L108: 8 | M108: 10 | N108: 6 | P108: 0 | Q108: 0 | R108: 104 | T108: =IF(AND(Y108="",Z108=""),0,COUNT(V$6:$V108)) -> 0 | W108: =COUNT(V$5:V108) -> 0 | X108: 0 | AB108: =VLOOKUP(103,count,2,FALSE) -> 
L109: 8 | M109: 10 | N109: 6 | P109: 0 | Q109: 0 | R109: 105 | T109: =IF(AND(Y109="",Z109=""),0,COUNT(V$6:$V109)) -> 0 | W109: =COUNT(V$5:V109) -> 0 | X109: 0 | AB109: =VLOOKUP(104,count,2,FALSE) -> 
L110: 8 | M110: 10 | N110: 6 | P110: 0 | Q110: 0 | R110: 106 | T110: =IF(AND(Y110="",Z110=""),0,COUNT(V$6:$V110)) -> 0 | W110: =COUNT(V$5:V110) -> 0 | X110: 0 | AB110: =VLOOKUP(105,count,2,FALSE) -> 
L111: 8 | M111: 10 | N111: 6 | P111: 0 | Q111: 0 | R111: 107 | T111: =IF(AND(Y111="",Z111=""),0,COUNT(V$6:$V111)) -> 0 | W111: =COUNT(V$5:V111) -> 0 | X111: 0 | AB111: =VLOOKUP(106,count,2,FALSE) -> 
L112: 8 | M112: 10 | N112: 6 | P112: 0 | Q112: 0 | R112: 108 | T112: =IF(AND(Y112="",Z112=""),0,COUNT(V$6:$V112)) -> 0 | W112: =COUNT(V$5:V112) -> 0 | X112: 0 | AB112: =VLOOKUP(107,count,2,FALSE) -> 
L113: 8 | M113: 10 | N113: 6 | P113: 0 | Q113: 0 | R113: 109 | T113: =IF(AND(Y113="",Z113=""),0,COUNT(V$6:$V113)) -> 0 | W113: =COUNT(V$5:V113) -> 0 | X113: 0 | AB113: =VLOOKUP(108,count,2,FALSE) -> 
L114: 8 | M114: 10 | N114: 6 | P114: 0 | Q114: 0 | R114: 110 | T114: =IF(AND(Y114="",Z114=""),0,COUNT(V$6:$V114)) -> 0 | W114: =COUNT(V$5:V114) -> 0 | X114: 0 | AB114: =VLOOKUP(109,count,2,FALSE) -> 
L115: 8 | M115: 10 | N115: 6 | P115: 0 | Q115: 0 | R115: 111 | T115: =IF(AND(Y115="",Z115=""),0,COUNT(V$6:$V115)) -> 0 | W115: =COUNT(V$5:V115) -> 0 | X115: 0 | AB115: =VLOOKUP(110,count,2,FALSE) -> 
L116: 8 | M116: 10 | N116: 6 | P116: 0 | Q116: 0 | R116: 112 | T116: =IF(AND(Y116="",Z116=""),0,COUNT(V$6:$V116)) -> 0 | W116: =COUNT(V$5:V116) -> 0 | X116: 0 | AB116: =VLOOKUP(111,count,2,FALSE) -> 
L117: 8 | M117: 10 | N117: 6 | P117: 0 | Q117: 0 | R117: 113 | T117: =IF(AND(Y117="",Z117=""),0,COUNT(V$6:$V117)) -> 0 | W117: =COUNT(V$5:V117) -> 0 | X117: 0 | AB117: =VLOOKUP(112,count,2,FALSE) -> 
L118: 8 | M118: 10 | N118: 6 | P118: 0 | Q118: 0 | R118: 114 | T118: =IF(AND(Y118="",Z118=""),0,COUNT(V$6:$V118)) -> 0 | W118: =COUNT(V$5:V118) -> 0 | X118: 0 | AB118: =VLOOKUP(113,count,2,FALSE) -> 
L119: 8 | M119: 10 | N119: 6 | P119: 0 | Q119: 0 | R119: 115 | T119: =IF(AND(Y119="",Z119=""),0,COUNT(V$6:$V119)) -> 0 | W119: =COUNT(V$5:V119) -> 0 | X119: 0 | AB119: =VLOOKUP(114,count,2,FALSE) -> 
L120: 8 | M120: 10 | N120: 6 | P120: 0 | Q120: 0 | R120: 116 | T120: =IF(AND(Y120="",Z120=""),0,COUNT(V$6:$V120)) -> 0 | W120: =COUNT(V$5:V120) -> 0 | X120: 0 | AB120: =VLOOKUP(115,count,2,FALSE) -> 
L121: 8 | M121: 10 | N121: 6 | P121: 0 | Q121: 0 | R121: 117 | T121: =IF(AND(Y121="",Z121=""),0,COUNT(V$6:$V121)) -> 0 | W121: =COUNT(V$5:V121) -> 0 | X121: 0 | AB121: =VLOOKUP(116,count,2,FALSE) -> 
L122: 8 | M122: 10 | N122: 6 | P122: 0 | Q122: 0 | R122: 118 | T122: =IF(AND(Y122="",Z122=""),0,COUNT(V$6:$V122)) -> 0 | W122: =COUNT(V$5:V122) -> 0 | X122: 0 | AB122: =VLOOKUP(117,count,2,FALSE) -> 
L123: 8 | M123: 10 | N123: 6 | P123: 0 | Q123: 0 | R123: 119 | T123: =IF(AND(Y123="",Z123=""),0,COUNT(V$6:$V123)) -> 0 | W123: =COUNT(V$5:V123) -> 0 | X123: 0 | AB123: =VLOOKUP(118,count,2,FALSE) -> 
L124: 8 | M124: 10 | N124: 6 | P124: 0 | Q124: 0 | R124: 120 | T124: =IF(AND(Y124="",Z124=""),0,COUNT(V$6:$V124)) -> 0 | W124: =COUNT(V$5:V124) -> 0 | X124: 0 | AB124: =VLOOKUP(119,count,2,FALSE) -> 
L125: 8 | M125: 10 | N125: 6 | P125: 0 | Q125: 0 | R125: 121 | T125: =IF(AND(Y125="",Z125=""),0,COUNT(V$6:$V125)) -> 0 | W125: =COUNT(V$5:V125) -> 0 | X125: 0 | AB125: =VLOOKUP(120,count,2,FALSE) -> 
L126: 8 | M126: 10 | N126: 6 | P126: 0 | Q126: 0 | R126: 122 | T126: =IF(AND(Y126="",Z126=""),0,COUNT(V$6:$V126)) -> 0 | W126: =COUNT(V$5:V126) -> 0 | X126: 0 | AB126: =VLOOKUP(121,count,2,FALSE) -> 
L127: 8 | M127: 10 | N127: 6 | P127: 0 | Q127: 0 | R127: 123 | T127: =IF(AND(Y127="",Z127=""),0,COUNT(V$6:$V127)) -> 0 | W127: =COUNT(V$5:V127) -> 0 | X127: 0 | AB127: =VLOOKUP(122,count,2,FALSE) -> 
L128: 8 | M128: 10 | N128: 6 | P128: 0 | Q128: 0 | R128: 124 | T128: =IF(AND(Y128="",Z128=""),0,COUNT(V$6:$V128)) -> 0 | W128: =COUNT(V$5:V128) -> 0 | X128: 0 | AB128: =VLOOKUP(123,count,2,FALSE) -> 
L129: 8 | M129: 10 | N129: 6 | P129: 0 | Q129: 0 | R129: 125 | T129: =IF(AND(Y129="",Z129=""),0,COUNT(V$6:$V129)) -> 0 | W129: =COUNT(V$5:V129) -> 0 | X129: 0 | AB129: =VLOOKUP(124,count,2,FALSE) -> 
L130: 8 | M130: 10 | N130: 6 | P130: 0 | Q130: 0 | R130: 126 | T130: =IF(AND(Y130="",Z130=""),0,COUNT(V$6:$V130)) -> 0 | W130: =COUNT(V$5:V130) -> 0 | X130: 0 | AB130: =VLOOKUP(125,count,2,FALSE) -> 
L131: 8 | M131: 10 | N131: 6 | P131: 0 | Q131: 0 | R131: 127 | T131: =IF(AND(Y131="",Z131=""),0,COUNT(V$6:$V131)) -> 0 | W131: =COUNT(V$5:V131) -> 0 | X131: 0 | AB131: =VLOOKUP(126,count,2,FALSE) -> 
L132: 8 | M132: 10 | N132: 6 | P132: 0 | Q132: 0 | R132: 128 | T132: =IF(AND(Y132="",Z132=""),0,COUNT(V$6:$V132)) -> 0 | W132: =COUNT(V$5:V132) -> 0 | X132: 0 | AB132: =VLOOKUP(127,count,2,FALSE) -> 
J133: =IF(A133="","",IF(AND(G133>1,H133>0),MROUND((6.5+I133),0.5),IF(AND(A133<>"",H133=""),J132))) ->  | L133: 8 | M133: 10 | N133: 6 | P133: 0 | Q133: 0 | R133: =IF(A133=A132,R132+1,1) -> 129 | T133: =IF(AND(Y133="",Z133=""),0,COUNT(V$6:$V133)) -> 0 | W133: =COUNT(V$5:V133) -> 0 | X133: 0 | AB133: =VLOOKUP(128,count,2,FALSE) ->  | AN133: =IF(AM133="","",G133) -> 
E134: =IF((D134>0),(D134/$E$4),#N/A) ->  | L134: 8 | M134: =IF(L134="","",L134+2) -> 10 | N134: =IF(L134="","",L134-2) -> 6 | P134: 0 | Q134: 0 | R134: 130 | S134: =IF(AND(R134>=R135,Q134>0),P134/Q134,"") ->  | T134: =IF(AND(Y134="",Z134=""),0,COUNT(V$6:$V134)) -> 0 | U134: =IF(AND(Y134="",Z134=""),"",A134) ->  | W134: =COUNT(V$5:V134) -> 0 | X134: 0 | Z134: =IF(S134="","",IF(AND(X134="",S134>0),S134+6,"")) ->  | AB134: =VLOOKUP(129,count,2,FALSE) -> 
B135: =IF(A135="","",B134+1) ->  | L135: 8 | M135: 10 | N135: 6 | P135: 0 | Q135: 0 | R135: 131 | T135: =IF(AND(Y135="",Z135=""),0,COUNT(V$6:$V135)) -> 0 | V135: =IF(AND(R135>=R136,Q135>0),1,"") ->  | W135: =COUNT(V$5:V135) -> 0 | X135: =IF(W134>=2,"",W134) -> 0 | AB135: =VLOOKUP(130,count,2,FALSE) ->  | AD135: =AC135-6 ->  | AH135: =AB134 ->  | AJ135: =IF($AI135="",#N/A,($AI135+1.5)) ->  | AK135: =IF($AI135="",#N/A,($AI135-1)) ->  | AO135: =IF(AM135=$AM$5,AQ135+1.5,IF(AM134="","",AQ135+1.5)) ->  | AP135: =IF(AM135=$AM$5,AQ135-1,IF(AN134="","",AQ135-1)) ->  | AQ135: =IF(AM135=AM134,AQ134,VLOOKUP(AM135,graph,2,FALSE)) -> 
L136: 8 | M136: 10 | N136: 6 | P136: 0 | Q136: 0 | R136: 132 | T136: =IF(AND(Y136="",Z136=""),0,COUNT(V$6:$V136)) -> 0 | W136: =COUNT(V$5:V136) -> 0 | X136: 0 | AB136: =VLOOKUP(131,count,2,FALSE) -> 
L137: 8 | M137: 10 | N137: 6 | P137: 0 | Q137: 0 | R137: 133 | T137: =IF(AND(Y137="",Z137=""),0,COUNT(V$6:$V137)) -> 0 | W137: =COUNT(V$5:V137) -> 0 | X137: 0 | AB137: =VLOOKUP(132,count,2,FALSE) ->  | AC137: =VLOOKUP(AB137,time,6,FALSE) ->  | AF137: =AE137-6 -> 
L138: 8 | M138: 10 | N138: 6 | P138: 0 | Q138: 0 | R138: 134 | T138: =IF(AND(Y138="",Z138=""),0,COUNT(V$6:$V138)) -> 0 | W138: =COUNT(V$5:V138) -> 0 | X138: 0 | AB138: =VLOOKUP(133,count,2,FALSE) -> 
L139: 8 | M139: 10 | N139: 6 | P139: 0 | Q139: 0 | R139: 135 | T139: =IF(AND(Y139="",Z139=""),0,COUNT(V$6:$V139)) -> 0 | W139: =COUNT(V$5:V139) -> 0 | X139: 0 | AB139: =VLOOKUP(134,count,2,FALSE) ->  | AI139: =IF(ABS(AE137-AE136)>0.5,MROUND(AE137,0.5),AI138) -> 
L140: 8 | M140: 10 | N140: 6 | P140: 0 | Q140: 0 | R140: 136 | T140: =IF(AND(Y140="",Z140=""),0,COUNT(V$6:$V140)) -> 0 | W140: =COUNT(V$5:V140) -> 0 | X140: 0 | AB140: =VLOOKUP(135,count,2,FALSE) -> 
L141: 8 | M141: 10 | N141: 6 | P141: 0 | Q141: 0 | R141: 137 | T141: =IF(AND(Y141="",Z141=""),0,COUNT(V$6:$V141)) -> 0 | W141: =COUNT(V$5:V141) -> 0 | X141: 0 | AB141: =VLOOKUP(136,count,2,FALSE) -> 
L142: 8 | M142: 10 | N142: 6 | P142: 0 | Q142: 0 | R142: 138 | T142: =IF(AND(Y142="",Z142=""),0,COUNT(V$6:$V142)) -> 0 | W142: =COUNT(V$5:V142) -> 0 | X142: 0 | AB142: =VLOOKUP(137,count,2,FALSE) -> 
L143: 8 | M143: 10 | N143: 6 | P143: 0 | Q143: 0 | R143: 139 | T143: =IF(AND(Y143="",Z143=""),0,COUNT(V$6:$V143)) -> 0 | W143: =COUNT(V$5:V143) -> 0 | X143: 0 | AB143: =VLOOKUP(138,count,2,FALSE) -> 
L144: 8 | M144: 10 | N144: 6 | P144: 0 | Q144: 0 | R144: 140 | T144: =IF(AND(Y144="",Z144=""),0,COUNT(V$6:$V144)) -> 0 | W144: =COUNT(V$5:V144) -> 0 | X144: 0 | AB144: =VLOOKUP(139,count,2,FALSE) -> 
L145: 8 | M145: 10 | N145: 6 | P145: 0 | Q145: 0 | R145: 141 | T145: =IF(AND(Y145="",Z145=""),0,COUNT(V$6:$V145)) -> 0 | W145: =COUNT(V$5:V145) -> 0 | X145: 0 | AB145: =VLOOKUP(140,count,2,FALSE) -> 
L146: 8 | M146: 10 | N146: 6 | P146: 0 | Q146: 0 | R146: 142 | T146: =IF(AND(Y146="",Z146=""),0,COUNT(V$6:$V146)) -> 0 | W146: =COUNT(V$5:V146) -> 0 | X146: 0 | AB146: =VLOOKUP(141,count,2,FALSE) -> 
L147: 8 | M147: 10 | N147: 6 | P147: 0 | Q147: 0 | R147: 143 | T147: =IF(AND(Y147="",Z147=""),0,COUNT(V$6:$V147)) -> 0 | W147: =COUNT(V$5:V147) -> 0 | X147: 0 | AB147: =VLOOKUP(142,count,2,FALSE) -> 
L148: 8 | M148: 10 | N148: 6 | P148: 0 | Q148: 0 | R148: 144 | T148: =IF(AND(Y148="",Z148=""),0,COUNT(V$6:$V148)) -> 0 | W148: =COUNT(V$5:V148) -> 0 | X148: 0 | AB148: =VLOOKUP(143,count,2,FALSE) -> 
L149: 8 | M149: 10 | N149: 6 | P149: 0 | Q149: 0 | R149: 145 | T149: =IF(AND(Y149="",Z149=""),0,COUNT(V$6:$V149)) -> 0 | W149: =COUNT(V$5:V149) -> 0 | X149: 0 | AB149: =VLOOKUP(144,count,2,FALSE) -> 
L150: 8 | M150: 10 | N150: 6 | P150: 0 | Q150: 0 | R150: 146 | T150: =IF(AND(Y150="",Z150=""),0,COUNT(V$6:$V150)) -> 0 | W150: =COUNT(V$5:V150) -> 0 | X150: 0 | AB150: =VLOOKUP(145,count,2,FALSE) -> 
L151: 8 | M151: 10 | N151: 6 | P151: 0 | Q151: 0 | R151: 147 | T151: =IF(AND(Y151="",Z151=""),0,COUNT(V$6:$V151)) -> 0 | W151: =COUNT(V$5:V151) -> 0 | X151: 0 | AB151: =VLOOKUP(146,count,2,FALSE) -> 
L152: 8 | M152: 10 | N152: 6 | P152: 0 | Q152: 0 | R152: 148 | T152: =IF(AND(Y152="",Z152=""),0,COUNT(V$6:$V152)) -> 0 | W152: =COUNT(V$5:V152) -> 0 | X152: 0 | AB152: =VLOOKUP(147,count,2,FALSE) -> 
L153: 8 | M153: 10 | N153: 6 | P153: 0 | Q153: 0 | R153: 149 | T153: =IF(AND(Y153="",Z153=""),0,COUNT(V$6:$V153)) -> 0 | W153: =COUNT(V$5:V153) -> 0 | X153: 0 | AB153: =VLOOKUP(148,count,2,FALSE) -> 
L154: 8 | M154: 10 | N154: 6 | P154: 0 | Q154: 0 | R154: 150 | T154: =IF(AND(Y154="",Z154=""),0,COUNT(V$6:$V154)) -> 0 | W154: =COUNT(V$5:V154) -> 0 | X154: 0 | AB154: =VLOOKUP(149,count,2,FALSE) -> 
B155: =IF(A155="","",B154+1) ->  | I155: =IF(H155="","",(G155-H155)) ->  | L155: 8 | M155: 10 | N155: 6 | P155: =IF(AND(H155="",A154=A155),P154,IF(AND(A154=A155,H155>1),O155+P154,IF(H155="",0,IF(H155>0,O155)))) -> 0 | Q155: =IF(AND(A155=A154,H155>1),Q154+1,IF(AND(H155="",A155=A154),Q154,IF(AND(H155="",P155=0),0,1))) -> 0 | R155: =IF(A155=A154,R154+1,1) -> 151 | S155: =IF(AND(R155>=R156,Q155>0),P155/Q155,"") ->  | T155: =IF(AND(Y155="",Z155=""),0,COUNT(V$6:$V155)) -> 0 | U155: =IF(AND(Y155="",Z155=""),"",A155) ->  | V155: =IF(AND(R155>=R156,Q155>0),1,"") ->  | W155: =COUNT(V$5:V155) -> 0 | X155: =IF(W154>=2,"",W154) -> 0 | Y155: =IF(X155<X156,S155+6,"") ->  | Z155: =IF(S155="","",IF(AND(X155="",S155>0),S155+6,"")) ->  | AB155: =VLOOKUP(149,count,2,FALSE) ->  | AE155: =AVERAGE(AC154:AC155) ->  | AH155: =AB154 ->  | AM155: =IF(A155="",#N/A,A155) ->  | AN155: =IF(AM155="","",G155) ->  | AO155: =IF(AM155=$AM$5,AQ155+1.5,IF(AM154="","",AQ155+1.5)) ->  | AP155: =IF(AM155=$AM$5,AQ155-1,IF(AN154="","",AQ155-1)) ->  | AQ155: =IF(AM155=AM154,AQ154,VLOOKUP(AM155,graph,2,FALSE)) -> 
L156: 8 | M156: 10 | N156: 6 | P156: 0 | Q156: 0 | R156: 152 | T156: =IF(AND(Y156="",Z156=""),0,COUNT(V$6:$V156)) -> 0 | W156: =COUNT(V$5:V156) -> 0 | X156: 0
L157: 8 | M157: 10 | N157: 6 | P157: 0 | Q157: 0 | R157: 153 | T157: =IF(AND(Y157="",Z157=""),0,COUNT(V$6:$V157)) -> 0 | W157: =COUNT(V$5:V157) -> 0 | X157: 0
L158: 8 | M158: 10 | N158: 6 | P158: 0 | Q158: 0 | R158: 154 | T158: =IF(AND(Y158="",Z158=""),0,COUNT(V$6:$V158)) -> 0 | W158: =COUNT(V$5:V158) -> 0 | X158: 0
L159: 8 | M159: 10 | N159: 6 | P159: 0 | Q159: 0 | R159: 155 | T159: =IF(AND(Y159="",Z159=""),0,COUNT(V$6:$V159)) -> 0 | W159: =COUNT(V$5:V159) -> 0 | X159: 0
L160: 8 | M160: 10 | N160: 6 | P160: 0 | Q160: 0 | R160: 156 | T160: =IF(AND(Y160="",Z160=""),0,COUNT(V$6:$V160)) -> 0 | W160: =COUNT(V$5:V160) -> 0 | X160: 0
L161: 8 | M161: 10 | N161: 6 | P161: 0 | Q161: 0 | R161: 157 | T161: =IF(AND(Y161="",Z161=""),0,COUNT(V$6:$V161)) -> 0 | W161: =COUNT(V$5:V161) -> 0 | X161: 0
L162: 8 | M162: 10 | N162: 6 | P162: 0 | Q162: 0 | R162: 158 | T162: =IF(AND(Y162="",Z162=""),0,COUNT(V$6:$V162)) -> 0 | W162: =COUNT(V$5:V162) -> 0 | X162: 0
L163: 8 | M163: 10 | N163: 6 | P163: 0 | Q163: 0 | R163: 159 | T163: =IF(AND(Y163="",Z163=""),0,COUNT(V$6:$V163)) -> 0 | W163: =COUNT(V$5:V163) -> 0 | X163: 0
L164: 8 | M164: 10 | N164: 6 | P164: 0 | Q164: 0 | R164: 160 | T164: =IF(AND(Y164="",Z164=""),0,COUNT(V$6:$V164)) -> 0 | W164: =COUNT(V$5:V164) -> 0 | X164: 0
J165: =IF(A165="","",IF(AND(G165>1,H165>0),MROUND((6.5+I165),0.5),IF(AND(A165<>"",H165=""),J164))) ->  | L165: 8 | M165: 10 | N165: 6 | P165: 0 | Q165: 0 | R165: 161 | T165: =IF(AND(Y165="",Z165=""),0,COUNT(V$6:$V165)) -> 0 | W165: =COUNT(V$5:V165) -> 0 | X165: 0
L166: 8 | M166: 10 | N166: 6 | P166: 0 | Q166: 0 | R166: 162 | T166: =IF(AND(Y166="",Z166=""),0,COUNT(V$6:$V166)) -> 0 | W166: =COUNT(V$5:V166) -> 0 | X166: 0
L167: 8 | M167: 10 | N167: 6 | P167: 0 | Q167: 0 | R167: 163 | T167: =IF(AND(Y167="",Z167=""),0,COUNT(V$6:$V167)) -> 0 | W167: =COUNT(V$5:V167) -> 0 | X167: 0
L168: 8 | M168: 10 | N168: 6 | P168: 0 | Q168: 0 | R168: 164 | T168: =IF(AND(Y168="",Z168=""),0,COUNT(V$6:$V168)) -> 0 | W168: =COUNT(V$5:V168) -> 0 | X168: 0
L169: 8 | M169: 10 | N169: 6 | O169: =I169 ->  | P169: 0 | Q169: 0 | R169: 165 | T169: =IF(AND(Y169="",Z169=""),0,COUNT(V$6:$V169)) -> 0 | W169: =COUNT(V$5:V169) -> 0 | X169: 0 | AA169: =IF(Z169="","",ABS($AI$6-Z169)) -> 
L170: 8 | M170: 10 | N170: 6 | P170: 0 | Q170: 0 | R170: 166 | T170: =IF(AND(Y170="",Z170=""),0,COUNT(V$6:$V170)) -> 0 | W170: =COUNT(V$5:V170) -> 0 | X170: 0
L171: 8 | M171: 10 | N171: 6 | P171: 0 | Q171: 0 | R171: 167 | T171: =IF(AND(Y171="",Z171=""),0,COUNT(V$6:$V171)) -> 0 | W171: =COUNT(V$5:V171) -> 0 | X171: 0
L172: 8 | M172: 10 | N172: 6 | P172: 0 | Q172: 0 | R172: 168 | T172: =IF(AND(Y172="",Z172=""),0,COUNT(V$6:$V172)) -> 0 | W172: =COUNT(V$5:V172) -> 0 | X172: 0
L173: 8 | M173: 10 | N173: 6 | P173: 0 | Q173: 0 | R173: 169 | T173: =IF(AND(Y173="",Z173=""),0,COUNT(V$6:$V173)) -> 0 | W173: =COUNT(V$5:V173) -> 0 | X173: 0
L174: 8 | M174: 10 | N174: 6 | P174: 0 | Q174: 0 | R174: 170 | T174: =IF(AND(Y174="",Z174=""),0,COUNT(V$6:$V174)) -> 0 | W174: =COUNT(V$5:V174) -> 0 | X174: 0
L175: 8 | M175: 10 | N175: 6 | P175: 0 | Q175: 0 | R175: 171 | T175: =IF(AND(Y175="",Z175=""),0,COUNT(V$6:$V175)) -> 0 | W175: =COUNT(V$5:V175) -> 0 | X175: 0
L176: 8 | M176: 10 | N176: 6 | P176: 0 | Q176: 0 | R176: 172 | T176: =IF(AND(Y176="",Z176=""),0,COUNT(V$6:$V176)) -> 0 | W176: =COUNT(V$5:V176) -> 0 | X176: 0
L177: 8 | M177: 10 | N177: 6 | P177: 0 | Q177: 0 | R177: 173 | T177: =IF(AND(Y177="",Z177=""),0,COUNT(V$6:$V177)) -> 0 | W177: =COUNT(V$5:V177) -> 0 | X177: 0
L178: 8 | M178: 10 | N178: 6 | P178: 0 | Q178: 0 | R178: 174 | T178: =IF(AND(Y178="",Z178=""),0,COUNT(V$6:$V178)) -> 0 | W178: =COUNT(V$5:V178) -> 0 | X178: 0
L179: 8 | M179: 10 | N179: 6 | P179: 0 | Q179: 0 | R179: 175 | T179: =IF(AND(Y179="",Z179=""),0,COUNT(V$6:$V179)) -> 0 | W179: =COUNT(V$5:V179) -> 0 | X179: 0
L180: 8 | M180: 10 | N180: 6 | P180: 0 | Q180: 0 | R180: 176 | T180: =IF(AND(Y180="",Z180=""),0,COUNT(V$6:$V180)) -> 0 | W180: =COUNT(V$5:V180) -> 0 | X180: 0
L181: 8 | M181: 10 | N181: 6 | P181: 0 | Q181: 0 | R181: 177 | T181: =IF(AND(Y181="",Z181=""),0,COUNT(V$6:$V181)) -> 0 | W181: =COUNT(V$5:V181) -> 0 | X181: 0
L182: 8 | M182: 10 | N182: 6 | P182: 0 | Q182: 0 | R182: 178 | T182: =IF(AND(Y182="",Z182=""),0,COUNT(V$6:$V182)) -> 0 | W182: =COUNT(V$5:V182) -> 0 | X182: 0
L183: 8 | M183: 10 | N183: 6 | P183: 0 | Q183: 0 | R183: 179 | T183: =IF(AND(Y183="",Z183=""),0,COUNT(V$6:$V183)) -> 0 | W183: =COUNT(V$5:V183) -> 0 | X183: 0
L184: 8 | M184: 10 | N184: 6 | P184: 0 | Q184: 0 | R184: 180 | T184: =IF(AND(Y184="",Z184=""),0,COUNT(V$6:$V184)) -> 0 | W184: =COUNT(V$5:V184) -> 0 | X184: 0
L185: 8 | M185: 10 | N185: 6 | P185: 0 | Q185: 0 | R185: 181 | T185: =IF(AND(Y185="",Z185=""),0,COUNT(V$6:$V185)) -> 0 | W185: =COUNT(V$5:V185) -> 0 | X185: 0
L186: 8 | M186: 10 | N186: 6 | P186: 0 | Q186: 0 | R186: 182 | T186: =IF(AND(Y186="",Z186=""),0,COUNT(V$6:$V186)) -> 0 | W186: =COUNT(V$5:V186) -> 0 | X186: 0
L187: 8 | M187: 10 | N187: 6 | P187: 0 | Q187: 0 | R187: 183 | T187: =IF(AND(Y187="",Z187=""),0,COUNT(V$6:$V187)) -> 0 | W187: =COUNT(V$5:V187) -> 0 | X187: 0
L188: 8 | M188: 10 | N188: 6 | P188: 0 | Q188: 0 | R188: 184 | T188: =IF(AND(Y188="",Z188=""),0,COUNT(V$6:$V188)) -> 0 | W188: =COUNT(V$5:V188) -> 0 | X188: 0
L189: 8 | M189: 10 | N189: 6 | P189: 0 | Q189: 0 | R189: 185 | T189: =IF(AND(Y189="",Z189=""),0,COUNT(V$6:$V189)) -> 0 | W189: =COUNT(V$5:V189) -> 0 | X189: 0
L190: 8 | M190: 10 | N190: 6 | P190: 0 | Q190: 0 | R190: 186 | T190: =IF(AND(Y190="",Z190=""),0,COUNT(V$6:$V190)) -> 0 | W190: =COUNT(V$5:V190) -> 0 | X190: 0
L191: 8 | M191: 10 | N191: 6 | P191: 0 | Q191: 0 | R191: 187 | T191: =IF(AND(Y191="",Z191=""),0,COUNT(V$6:$V191)) -> 0 | W191: =COUNT(V$5:V191) -> 0 | X191: 0
L192: 8 | M192: 10 | N192: 6 | P192: 0 | Q192: 0 | R192: 188 | T192: =IF(AND(Y192="",Z192=""),0,COUNT(V$6:$V192)) -> 0 | W192: =COUNT(V$5:V192) -> 0 | X192: 0
L193: 8 | M193: 10 | N193: 6 | P193: 0 | Q193: 0 | R193: 189 | T193: =IF(AND(Y193="",Z193=""),0,COUNT(V$6:$V193)) -> 0 | W193: =COUNT(V$5:V193) -> 0 | X193: 0
L194: 8 | M194: 10 | N194: 6 | P194: 0 | Q194: 0 | R194: 190 | T194: =IF(AND(Y194="",Z194=""),0,COUNT(V$6:$V194)) -> 0 | W194: =COUNT(V$5:V194) -> 0 | X194: 0
L195: 8 | M195: 10 | N195: 6 | P195: 0 | Q195: 0 | R195: 191 | T195: =IF(AND(Y195="",Z195=""),0,COUNT(V$6:$V195)) -> 0 | W195: =COUNT(V$5:V195) -> 0 | X195: 0
L196: 8 | M196: 10 | N196: 6 | P196: 0 | Q196: 0 | R196: 192 | T196: =IF(AND(Y196="",Z196=""),0,COUNT(V$6:$V196)) -> 0 | W196: =COUNT(V$5:V196) -> 0 | X196: 0
J197: =IF(A197="","",IF(AND(G197>1,I197>0),MROUND((6.5+I197),0.5),IF(AND(A197<>"",I197>0.01),J196))) ->  | L197: 8 | M197: 10 | N197: 6 | P197: 0 | Q197: 0 | R197: 193 | T197: =IF(AND(Y197="",Z197=""),0,COUNT(V$6:$V197)) -> 0 | W197: =COUNT(V$5:V197) -> 0 | X197: 0
E198: =IF((D198>0),(D198/$E$4),#N/A) ->  | L198: 8 | M198: =IF(L198="","",L198+2) -> 10 | N198: =IF(L198="","",L198-2) -> 6 | P198: 0 | Q198: 0 | R198: 194 | T198: =IF(AND(Y198="",Z198=""),0,COUNT(V$6:$V198)) -> 0 | W198: =COUNT(V$5:V198) -> 0 | X198: 0
L199: 8 | M199: 10 | N199: 6 | P199: 0 | Q199: 0 | R199: 195 | T199: =IF(AND(Y199="",Z199=""),0,COUNT(V$6:$V199)) -> 0 | W199: =COUNT(V$5:V199) -> 0 | X199: 0 | AD199: =AC199-6 ->  | AJ199: =IF($AI199="",#N/A,($AI199+1.5)) ->  | AK199: =IF($AI199="",#N/A,($AI199-1)) -> 
L200: 8 | M200: 10 | N200: 6 | P200: 0 | Q200: 0 | R200: 196 | T200: =IF(AND(Y200="",Z200=""),0,COUNT(V$6:$V200)) -> 0 | W200: =COUNT(V$5:V200) -> 0 | X200: 0
... 201 more rows

Sheet Moisture and WC
C1: Moisture Content | H1: 1
C2: Coarse | D2: Intermediate | E2: Fine | F2: Average | H2: 2
A3: Date | B3: Test # | C3: (%) | D3: (%) | E3: (%) | F3: w/c | H3: 3
B4: =IF(A4="","",H1) ->  | H4: 4
H5: 5
H6: 6
H7: 7
H8: 8
H9: 9
H10: 10
H11: 11
H12: 12
H13: 13
H14: 14
H15: 15
H16: 16
H17: 17
H18: 18
H19: 19
H20: 20
H21: 21
H22: 22
H23: 23
H24: 24
H25: 25
H26: 26
H27: 27
H28: 28
H29: 29
H30: 30
H31: 31
H32: 32
H33: 33
H34: 34
H35: 35
B36: =IF(A36="","",H33) ->  | H36: 36
B37: =IF(A37="","",#REF!) ->  | H37: 37
H38: 38
H39: 39
H40: 40
H41: 41
H42: 42
H43: 43
H44: 44
H45: 45
H46: 46
H47: 47
H48: 48
H49: 49
H50: 50
H51: 51
H52: 52
H53: 53
H54: 54
H55: 55
H56: 56
H57: 57
H58: 58
H59: 59
H60: 60
H61: 61
H62: 62
H63: 63
H64: 64
H65: 65
H66: 66
H67: 67
B68: =IF(A68="","",H65) ->  | H68: 68
H69: 69
H70: 70
H71: 71
H72: 72
H73: 73
H74: 74
H75: 75
E80: Average WC | F80: =AVERAGE(F4:F78) -> 

Sheet Vibrators
B1: Spacing
B2: Vibrator # | C2: 1 | D2: 2 | E2: 3 | F2: 4 | G2: 5 | H2: 6 | I2: 7 | J2: 8 | K2: 9 | L2: 10 | M2: 11 | N2: 12 | O2: 13 | P2: 14 | Q2: 15 | R2: 16 | S2: 17 | T2: 18 | U2: 19 | V2: 20 | W2: 21 | X2: 22 | Y2: 23 | Z2: 24
A3: Time | B3: Sta | D3: Vibrations per Minute (VPM's)

Sheet Mix Changes
A2: Date | B2: Time | C2: Mix Change | D2: Comments
